﻿Department Family,Entity,Date,Expense Type,Expense Area,Supplier,Transaction Number,AP Amount,Supplier Postcode
Department of Health,NHS Sheffield CCG,30/06/2021,Cont Care-Physical Disab (65+),CHC ADULT FULLY FUNDED,ABBEYCARE NURSING,36972780,57327.6,S35 9YY
Department of Health,NHS Sheffield CCG,30/06/2021,Hcare Srv Rec Fdtn Trust-Contract Baseline,ACUTE COMMISSIONING,BARNSLEY HOSPITAL NHS FOUNDATION TRUST,37065701,131671.79,S75 2EP
Department of Health,NHS Sheffield CCG,30/06/2021,C&M-PMS Contract Value,PRC DELEGATED CO-COMMISSIONING,BARNSLEY ROAD SURGERY,37007524,21464.94,S5 0QJ
Department of Health,NHS Sheffield CCG,30/06/2021,C&M-PMS Funding Differential Review,PRC DELEGATED CO-COMMISSIONING,BARNSLEY ROAD SURGERY,37007524,506.44,S5 0QJ
Department of Health,NHS Sheffield CCG,30/06/2021,C&M-PMS PCN DES Participation,PRC DELEGATED CO-COMMISSIONING,BARNSLEY ROAD SURGERY,37007524,387.62,S5 0QJ
Department of Health,NHS Sheffield CCG,30/06/2021,C&M-PMS Prem Notional Rent,PRC DELEGATED CO-COMMISSIONING,BARNSLEY ROAD SURGERY,37007524,2652.17,S5 0QJ
Department of Health,NHS Sheffield CCG,30/06/2021,C&M-PMS Prem Rates,PRC DELEGATED CO-COMMISSIONING,BARNSLEY ROAD SURGERY,37007524,674,S5 0QJ
Department of Health,NHS Sheffield CCG,30/06/2021,C&M-PMS QOF Aspiration,PRC DELEGATED CO-COMMISSIONING,BARNSLEY ROAD SURGERY,37007524,2443.92,S5 0QJ
Department of Health,NHS Sheffield CCG,30/06/2021,C&M-GMS Cost of Drugs -Prescribing,LOCAL ENHANCED SERVICES,BASLOW ROAD & SHOREHAM STREET SURGERIES,37192872,24835.19,S17 4DR
Department of Health,NHS Sheffield CCG,30/06/2021,C&M-GMS Prof Fees Prescribing,PRC DELEGATED CO-COMMISSIONING,BASLOW ROAD & SHOREHAM STREET SURGERIES,37192872,5445.02,S17 4DR
Department of Health,NHS Sheffield CCG,30/06/2021,C&M-GMS Global Sum,PRC DELEGATED CO-COMMISSIONING,BASLOW ROAD & SHOREHAM STREET SURGERIES,37192873,101568.79,S17 4DR
Department of Health,NHS Sheffield CCG,30/06/2021,C&M-GMS PCN DES Participation,PRC DELEGATED CO-COMMISSIONING,BASLOW ROAD & SHOREHAM STREET SURGERIES,37192873,1957.06,S17 4DR
Department of Health,NHS Sheffield CCG,30/06/2021,C&M-GMS Prem Notional Rent,PRC DELEGATED CO-COMMISSIONING,BASLOW ROAD & SHOREHAM STREET SURGERIES,37192873,8222.71,S17 4DR
Department of Health,NHS Sheffield CCG,30/06/2021,C&M-GMS QOF Achievement,PRC DELEGATED CO-COMMISSIONING,BASLOW ROAD & SHOREHAM STREET SURGERIES,37192873,49151.08,S17 4DR
Department of Health,NHS Sheffield CCG,30/06/2021,C&M-GMS QOF Aspiration,PRC DELEGATED CO-COMMISSIONING,BASLOW ROAD & SHOREHAM STREET SURGERIES,37192873,10432.69,S17 4DR
Department of Health,NHS Sheffield CCG,30/06/2021,Cont Care-Physical Disab (65+),CHC ADULT FULLY FUNDED,BC SHEFFIELD LTD,36918117,42371.98,S9 2TJ
Department of Health,NHS Sheffield CCG,30/06/2021,C&M-GMS Global Sum,PRC DELEGATED CO-COMMISSIONING,BEAUCHIEF MEDICAL PRACTICE,36922665,27000,S8 0BJ
Department of Health,NHS Sheffield CCG,30/06/2021,C&M-PMS Contract Value,PRC DELEGATED CO-COMMISSIONING,BIRLEY HEALTH CENTRE,37007535,67912.65,S12 3BP
Department of Health,NHS Sheffield CCG,30/06/2021,C&M-PMS PCN DES Participation,PRC DELEGATED CO-COMMISSIONING,BIRLEY HEALTH CENTRE,37007535,1224.59,S12 3BP
Department of Health,NHS Sheffield CCG,30/06/2021,C&M-PMS Prem Notional Rent,PRC DELEGATED CO-COMMISSIONING,BIRLEY HEALTH CENTRE,37007535,7600.58,S12 3BP
Department of Health,NHS Sheffield CCG,30/06/2021,C&M-PMS Prem Rates,PRC DELEGATED CO-COMMISSIONING,BIRLEY HEALTH CENTRE,37007535,2687.17,S12 3BP
Department of Health,NHS Sheffield CCG,30/06/2021,C&M-PMS Prem Water Rates,PRC DELEGATED CO-COMMISSIONING,BIRLEY HEALTH CENTRE,37007535,97.65,S12 3BP
Department of Health,NHS Sheffield CCG,30/06/2021,C&M-PMS QOF Aspiration,PRC DELEGATED CO-COMMISSIONING,BIRLEY HEALTH CENTRE,37007535,8434.07,S12 3BP
Department of Health,NHS Sheffield CCG,30/06/2021,C&M-PMS QOF Achievement,PRC DELEGATED CO-COMMISSIONING,BIRLEY HEALTH CENTRE,37158833,36571.72,S12 3BP
Department of Health,NHS Sheffield CCG,30/06/2021,Clinical&Medical-Independent Sector,ACUTE COMMISSIONING,BMI HEALTHCARE LTD,36926918,47095.63,SK3 0XN
Department of Health,NHS Sheffield CCG,30/06/2021,Cont Care-Funded Nursing Care Allow,FUNDED NURSING CARE,BONDCARE,37072522,31892,NW4 4EF
Department of Health,NHS Sheffield CCG,30/06/2021,C&M-GMS Global Sum,PRC DELEGATED CO-COMMISSIONING,BROOMHILL SURGERY,37192886,68591.08,S10 5BU
Department of Health,NHS Sheffield CCG,30/06/2021,C&M-GMS PCN DES Participation,PRC DELEGATED CO-COMMISSIONING,BROOMHILL SURGERY,37192886,1322.15,S10 5BU
Department of Health,NHS Sheffield CCG,30/06/2021,C&M-GMS Prem Cost Rent,PRC DELEGATED CO-COMMISSIONING,BROOMHILL SURGERY,37192886,3309.67,S10 5BU
Department of Health,NHS Sheffield CCG,30/06/2021,C&M-GMS Prem Notional Rent,PRC DELEGATED CO-COMMISSIONING,BROOMHILL SURGERY,37192886,2612.5,S10 5BU
Department of Health,NHS Sheffield CCG,30/06/2021,C&M-GMS QOF Achievement,PRC DELEGATED CO-COMMISSIONING,BROOMHILL SURGERY,37192886,27015.48,S10 5BU
Department of Health,NHS Sheffield CCG,30/06/2021,C&M-GMS QOF Aspiration,PRC DELEGATED CO-COMMISSIONING,BROOMHILL SURGERY,37192886,7198.65,S10 5BU
Department of Health,NHS Sheffield CCG,30/06/2021,C&M-GMS Global Sum,PRC DELEGATED CO-COMMISSIONING,BUCHANAN ROAD SURGERY,37192888,37859.26,S5 8AL
Department of Health,NHS Sheffield CCG,30/06/2021,C&M-GMS PCN DES Participation,PRC DELEGATED CO-COMMISSIONING,BUCHANAN ROAD SURGERY,37192888,727.12,S5 8AL
Department of Health,NHS Sheffield CCG,30/06/2021,C&M-GMS Prem Notional Rent,PRC DELEGATED CO-COMMISSIONING,BUCHANAN ROAD SURGERY,37192888,2595.83,S5 8AL
Department of Health,NHS Sheffield CCG,30/06/2021,C&M-GMS QOF Achievement,PRC DELEGATED CO-COMMISSIONING,BUCHANAN ROAD SURGERY,37192888,20215.59,S5 8AL
Department of Health,NHS Sheffield CCG,30/06/2021,C&M-GMS QOF Aspiration,PRC DELEGATED CO-COMMISSIONING,BUCHANAN ROAD SURGERY,37192888,4716.42,S5 8AL
Department of Health,NHS Sheffield CCG,30/06/2021,C&M-PMS Contract Value,PRC DELEGATED CO-COMMISSIONING,BURNCROSS SURGERY,37007533,127123.64,S35 1RN
Department of Health,NHS Sheffield CCG,30/06/2021,C&M-PMS DES Learn Dsblty Hlth Chk,PRC DELEGATED CO-COMMISSIONING,BURNCROSS SURGERY,37007533,1680,S35 1RN
Department of Health,NHS Sheffield CCG,30/06/2021,C&M-PMS Funding Differential Review,PRC DELEGATED CO-COMMISSIONING,BURNCROSS SURGERY,37007533,2746.32,S35 1RN
Department of Health,NHS Sheffield CCG,30/06/2021,C&M-PMS PCN DES Participation,PRC DELEGATED CO-COMMISSIONING,BURNCROSS SURGERY,37007533,2296.43,S35 1RN
Department of Health,NHS Sheffield CCG,30/06/2021,C&M-PMS Prem Notional Rent,PRC DELEGATED CO-COMMISSIONING,BURNCROSS SURGERY,37007533,14919.67,S35 1RN
Department of Health,NHS Sheffield CCG,30/06/2021,C&M-PMS QOF Aspiration,PRC DELEGATED CO-COMMISSIONING,BURNCROSS SURGERY,37007533,16606.07,S35 1RN
Department of Health,NHS Sheffield CCG,30/06/2021,C&M-PMS QOF Achievement,PRC DELEGATED CO-COMMISSIONING,BURNCROSS SURGERY,37158831,63151.53,S35 1RN
Department of Health,NHS Sheffield CCG,30/06/2021,C&M-PMS Contract Value,PRC DELEGATED CO-COMMISSIONING,BURNGREAVE SURGERY,37007532,59337.84,S3 9DA
Department of Health,NHS Sheffield CCG,30/06/2021,C&M-PMS DES Learn Dsblty Hlth Chk,PRC DELEGATED CO-COMMISSIONING,BURNGREAVE SURGERY,37007532,3360,S3 9DA
Department of Health,NHS Sheffield CCG,30/06/2021,C&M-PMS Out of Hours Opt Outs,PRC DELEGATED CO-COMMISSIONING,BURNGREAVE SURGERY,37007532,58.96,S3 9DA
Department of Health,NHS Sheffield CCG,30/06/2021,C&M-PMS PCN DES Participation,PRC DELEGATED CO-COMMISSIONING,BURNGREAVE SURGERY,37007532,1072.06,S3 9DA
Department of Health,NHS Sheffield CCG,30/06/2021,C&M-PMS PCO Other,PRC DELEGATED CO-COMMISSIONING,BURNGREAVE SURGERY,37007532,4436,S3 9DA
Department of Health,NHS Sheffield CCG,30/06/2021,C&M-PMS Prem Notional Rent,PRC DELEGATED CO-COMMISSIONING,BURNGREAVE SURGERY,37007532,6622.92,S3 9DA
Department of Health,NHS Sheffield CCG,30/06/2021,C&M-PMS Prem Rates,PRC DELEGATED CO-COMMISSIONING,BURNGREAVE SURGERY,37007532,2340,S3 9DA
Department of Health,NHS Sheffield CCG,30/06/2021,C&M-PMS QOF Aspiration,PRC DELEGATED CO-COMMISSIONING,BURNGREAVE SURGERY,37007532,5671.9,S3 9DA
Department of Health,NHS Sheffield CCG,30/06/2021,C&M-GMS Global Sum,PRC DELEGATED CO-COMMISSIONING,CARTERKNOWLE & DORE MEDICAL PRACTICE,37192898,93873.25,S7 2DW
Department of Health,NHS Sheffield CCG,30/06/2021,C&M-GMS PCN DES Participation,PRC DELEGATED CO-COMMISSIONING,CARTERKNOWLE & DORE MEDICAL PRACTICE,37192898,1765.5,S7 2DW
Department of Health,NHS Sheffield CCG,30/06/2021,C&M-GMS Prem Notional Rent,PRC DELEGATED CO-COMMISSIONING,CARTERKNOWLE & DORE MEDICAL PRACTICE,37192898,7855,S7 2DW
Department of Health,NHS Sheffield CCG,30/06/2021,C&M-GMS QOF Achievement,PRC DELEGATED CO-COMMISSIONING,CARTERKNOWLE & DORE MEDICAL PRACTICE,37192898,47520.71,S7 2DW
Department of Health,NHS Sheffield CCG,30/06/2021,C&M-GMS QOF Aspiration,PRC DELEGATED CO-COMMISSIONING,CARTERKNOWLE & DORE MEDICAL PRACTICE,37192898,11516.91,S7 2DW
Department of Health,NHS Sheffield CCG,30/06/2021,C&M-GMS Global Sum,PRC DELEGATED CO-COMMISSIONING,CHARNOCK HEALTH PRIMARY CARE CENTRE,37192892,46381.58,S12 3GH
Department of Health,NHS Sheffield CCG,30/06/2021,C&M-GMS PCN DES Participation,PRC DELEGATED CO-COMMISSIONING,CHARNOCK HEALTH PRIMARY CARE CENTRE,37192892,884.41,S12 3GH
Department of Health,NHS Sheffield CCG,30/06/2021,C&M-GMS Prem Notional Rent,PRC DELEGATED CO-COMMISSIONING,CHARNOCK HEALTH PRIMARY CARE CENTRE,37192892,340,S12 3GH
Department of Health,NHS Sheffield CCG,30/06/2021,C&M-GMS QOF Achievement,PRC DELEGATED CO-COMMISSIONING,CHARNOCK HEALTH PRIMARY CARE CENTRE,37192892,20828.34,S12 3GH
Department of Health,NHS Sheffield CCG,30/06/2021,C&M-GMS QOF Aspiration,PRC DELEGATED CO-COMMISSIONING,CHARNOCK HEALTH PRIMARY CARE CENTRE,37192892,5385.73,S12 3GH
Department of Health,NHS Sheffield CCG,30/06/2021,Hcare Srv Rec Fdtn Trust-Contract Baseline,ACUTE COMMISSIONING,CHESTERFIELD ROYAL HOSPITAL NHS FOUNDATION TRUST,37065702,371022.89,S44 5BL
Department of Health,NHS Sheffield CCG,30/06/2021,Clinical&Medical-Independent Sector,ACUTE COMMISSIONING,CLAREMONT HOSPITAL,37062148,78839,S10 5UB
Department of Health,NHS Sheffield CCG,30/06/2021,C&M-APMS Contract Value,PRC DELEGATED CO-COMMISSIONING,CLOVER CITY PRACTICE,37007515,34426.74,S9 4QH
Department of Health,NHS Sheffield CCG,30/06/2021,C&M-APMS PCN DES Participation,PRC DELEGATED CO-COMMISSIONING,CLOVER CITY PRACTICE,37007515,592.77,S9 4QH
Department of Health,NHS Sheffield CCG,30/06/2021,C&M-APMS QOF Aspiration,PRC DELEGATED CO-COMMISSIONING,CLOVER CITY PRACTICE,37007515,2087.76,S9 4QH
Department of Health,NHS Sheffield CCG,30/06/2021,C&M-APMS Contract Value,PRC DELEGATED CO-COMMISSIONING,CLOVER GROUP PRACTICE,37007534,126289.47,S9 4QH
Department of Health,NHS Sheffield CCG,30/06/2021,C&M-APMS OOH Opt Outs,PRC DELEGATED CO-COMMISSIONING,CLOVER GROUP PRACTICE,37007534,1994.68,S9 4QH
Department of Health,NHS Sheffield CCG,30/06/2021,C&M-APMS PCN DES Participation,PRC DELEGATED CO-COMMISSIONING,CLOVER GROUP PRACTICE,37007534,2290.04,S9 4QH
Department of Health,NHS Sheffield CCG,30/06/2021,C&M-APMS Prem Actual Rent,PRC DELEGATED CO-COMMISSIONING,CLOVER GROUP PRACTICE,37007534,5169.68,S9 4QH
Department of Health,NHS Sheffield CCG,30/06/2021,C&M-APMS Prem Healthcentre Rent,PRC DELEGATED CO-COMMISSIONING,CLOVER GROUP PRACTICE,37007534,50558.86,S9 4QH
Department of Health,NHS Sheffield CCG,30/06/2021,C&M-APMS Prem Notional Rent,PRC DELEGATED CO-COMMISSIONING,CLOVER GROUP PRACTICE,37007534,2804.17,S9 4QH
Department of Health,NHS Sheffield CCG,30/06/2021,C&M-APMS QOF Aspiration,PRC DELEGATED CO-COMMISSIONING,CLOVER GROUP PRACTICE,37007534,9965.6,S9 4QH
Department of Health,NHS Sheffield CCG,30/06/2021,C&M-APMS Contract Value,PRC DELEGATED CO-COMMISSIONING,CLOVER GROUP PRACTICE,37013978,-43938.81,S9 4QH
Department of Health,NHS Sheffield CCG,30/06/2021,C&M-APMS OOH Opt Outs,PRC DELEGATED CO-COMMISSIONING,CLOVER GROUP PRACTICE,37013978,-5957.96,S9 4QH
Department of Health,NHS Sheffield CCG,30/06/2021,C&M-PMS GP Statutory Levy,PRC DELEGATED CO-COMMISSIONING,CLOVER GROUP PRACTICE,37013978,-526.72,S9 4QH
Department of Health,NHS Sheffield CCG,30/06/2021,Voids and Subsidies,PRC DELEGATED CO-COMMISSIONING,COMMUNITY HEALTH PARTNERSHIPS LTD,36926925,39478.3,M1 3LD
Department of Health,NHS Sheffield CCG,30/06/2021,Voids and Subsidies,RECHARGES NHS PROPERTY SERVICES LTD,COMMUNITY HEALTH PARTNERSHIPS LTD,36926925,126922.74,M1 3LD
Department of Health,NHS Sheffield CCG,30/06/2021,C&M-GMS Global Sum,PRC DELEGATED CO-COMMISSIONING,CROOKES PRACTICE,37192913,56502.73,S10 1GN
Department of Health,NHS Sheffield CCG,30/06/2021,C&M-GMS PCN DES Participation,PRC DELEGATED CO-COMMISSIONING,CROOKES PRACTICE,37192913,1077.54,S10 1GN
Department of Health,NHS Sheffield CCG,30/06/2021,C&M-GMS Prem Notional Rent,PRC DELEGATED CO-COMMISSIONING,CROOKES PRACTICE,37192913,3874.67,S10 1GN
Department of Health,NHS Sheffield CCG,30/06/2021,C&M-GMS QOF Achievement,PRC DELEGATED CO-COMMISSIONING,CROOKES PRACTICE,37192913,21283.01,S10 1GN
Department of Health,NHS Sheffield CCG,30/06/2021,C&M-GMS QOF Aspiration,PRC DELEGATED CO-COMMISSIONING,CROOKES PRACTICE,37192913,5404.47,S10 1GN
Department of Health,NHS Sheffield CCG,30/06/2021,C&M-PMS Contract Value,PRC DELEGATED CO-COMMISSIONING,DEEPCAR MEDICAL CENTRE,37007542,43351.63,S36 2RA
Department of Health,NHS Sheffield CCG,30/06/2021,C&M-PMS Out of Hours Opt Outs,PRC DELEGATED CO-COMMISSIONING,DEEPCAR MEDICAL CENTRE,37007542,40.55,S36 2RA
Department of Health,NHS Sheffield CCG,30/06/2021,C&M-PMS PCN DES Participation,PRC DELEGATED CO-COMMISSIONING,DEEPCAR MEDICAL CENTRE,37007542,784.44,S36 2RA
Department of Health,NHS Sheffield CCG,30/06/2021,C&M-PMS Prem Healthcentre Rent,PRC DELEGATED CO-COMMISSIONING,DEEPCAR MEDICAL CENTRE,37007542,31726.61,S36 2RA
Department of Health,NHS Sheffield CCG,30/06/2021,C&M-PMS QOF Aspiration,PRC DELEGATED CO-COMMISSIONING,DEEPCAR MEDICAL CENTRE,37007542,4646.77,S36 2RA
Department of Health,NHS Sheffield CCG,30/06/2021,C&M-GMS Global Sum,PRC DELEGATED CO-COMMISSIONING,DEVONSHIRE GREEN MEDICAL CENTRE,37192925,49558.82,S3 7SF
Department of Health,NHS Sheffield CCG,30/06/2021,C&M-GMS PCN DES Participation,PRC DELEGATED CO-COMMISSIONING,DEVONSHIRE GREEN MEDICAL CENTRE,37192925,936.47,S3 7SF
Department of Health,NHS Sheffield CCG,30/06/2021,C&M-GMS Prem Notional Rent,PRC DELEGATED CO-COMMISSIONING,DEVONSHIRE GREEN MEDICAL CENTRE,37192925,5987.5,S3 7SF
Department of Health,NHS Sheffield CCG,30/06/2021,C&M-GMS QOF Achievement,PRC DELEGATED CO-COMMISSIONING,DEVONSHIRE GREEN MEDICAL CENTRE,37192925,22991.75,S3 7SF
Department of Health,NHS Sheffield CCG,30/06/2021,C&M-GMS QOF Aspiration,PRC DELEGATED CO-COMMISSIONING,DEVONSHIRE GREEN MEDICAL CENTRE,37192925,5473.95,S3 7SF
Department of Health,NHS Sheffield CCG,30/06/2021,Hcare Srv Rec Fdtn Trust-Contract Baseline,ACUTE COMMISSIONING,DONCASTER AND BASSETLAW HOSPITALS NHS FOUNDATION TRUST,37065703,80128.09,WF3 1WE
Department of Health,NHS Sheffield CCG,30/06/2021,C&M-PMS Contract Value,PRC DELEGATED CO-COMMISSIONING,DOVERCOURT SURGERY,37007544,79283.84,S2 5FX
Department of Health,NHS Sheffield CCG,30/06/2021,C&M-PMS DES Learn Dsblty Hlth Chk,PRC DELEGATED CO-COMMISSIONING,DOVERCOURT SURGERY,37007544,980,S2 5FX
Department of Health,NHS Sheffield CCG,30/06/2021,C&M-PMS Out of Hours Opt Outs,PRC DELEGATED CO-COMMISSIONING,DOVERCOURT SURGERY,37007544,35.26,S2 5FX
Department of Health,NHS Sheffield CCG,30/06/2021,C&M-PMS PCN DES Participation,PRC DELEGATED CO-COMMISSIONING,DOVERCOURT SURGERY,37007544,1436.25,S2 5FX
Department of Health,NHS Sheffield CCG,30/06/2021,C&M-PMS PCO Other,PRC DELEGATED CO-COMMISSIONING,DOVERCOURT SURGERY,37007544,552,S2 5FX
Department of Health,NHS Sheffield CCG,30/06/2021,C&M-PMS Prem Actual Rent,PRC DELEGATED CO-COMMISSIONING,DOVERCOURT SURGERY,37007544,14108.33,S2 5FX
Department of Health,NHS Sheffield CCG,30/06/2021,C&M-PMS Prem Notional Rent,PRC DELEGATED CO-COMMISSIONING,DOVERCOURT SURGERY,37007544,23944.5,S2 5FX
Department of Health,NHS Sheffield CCG,30/06/2021,C&M-PMS QOF Aspiration,PRC DELEGATED CO-COMMISSIONING,DOVERCOURT SURGERY,37007544,8804.83,S2 5FX
Department of Health,NHS Sheffield CCG,30/06/2021,C&M-PMS QOF Achievement,PRC DELEGATED CO-COMMISSIONING,DOVERCOURT SURGERY,37158843,39074.83,S2 5FX
Department of Health,NHS Sheffield CCG,30/06/2021,C&M-PMS Contract Value,PRC DELEGATED CO-COMMISSIONING,DR MEHROTRA & PARTNER,37013997,25295.85,S9 5DH
Department of Health,NHS Sheffield CCG,30/06/2021,C&M-PMS Funding Differential Review,PRC DELEGATED CO-COMMISSIONING,DR MEHROTRA & PARTNER,37013997,520.47,S9 5DH
Department of Health,NHS Sheffield CCG,30/06/2021,C&M-PMS PCN DES Participation,PRC DELEGATED CO-COMMISSIONING,DR MEHROTRA & PARTNER,37013997,457.08,S9 5DH
Department of Health,NHS Sheffield CCG,30/06/2021,C&M-PMS PCO Other,PRC DELEGATED CO-COMMISSIONING,DR MEHROTRA & PARTNER,37013997,2232,S9 5DH
Department of Health,NHS Sheffield CCG,30/06/2021,C&M-PMS Prem Notional Rent,PRC DELEGATED CO-COMMISSIONING,DR MEHROTRA & PARTNER,37013997,5157.29,S9 5DH
Department of Health,NHS Sheffield CCG,30/06/2021,C&M-PMS QOF Aspiration,PRC DELEGATED CO-COMMISSIONING,DR MEHROTRA & PARTNER,37013997,2925.04,S9 5DH
Department of Health,NHS Sheffield CCG,30/06/2021,C&M-GP PRACTICE REVENUE - PCTF,LOCAL ENHANCED SERVICES,DR MILNER & PARTNERS,37014005,15120,S6 4JQ
Department of Health,NHS Sheffield CCG,30/06/2021,C&M-PMS Contract Value,PRC DELEGATED CO-COMMISSIONING,DR MILNER & PARTNERS,37014005,80357.47,S6 4JQ
Department of Health,NHS Sheffield CCG,30/06/2021,C&M-PMS Out of Hours Opt Outs,PRC DELEGATED CO-COMMISSIONING,DR MILNER & PARTNERS,37014005,105.26,S6 4JQ
Department of Health,NHS Sheffield CCG,30/06/2021,C&M-PMS PCN DES Participation,PRC DELEGATED CO-COMMISSIONING,DR MILNER & PARTNERS,37014005,1456.05,S6 4JQ
Department of Health,NHS Sheffield CCG,30/06/2021,C&M-PMS Prem Actual Rent,PRC DELEGATED CO-COMMISSIONING,DR MILNER & PARTNERS,37014005,11382,S6 4JQ
Department of Health,NHS Sheffield CCG,30/06/2021,C&M-PMS Prem Notional Rent,PRC DELEGATED CO-COMMISSIONING,DR MILNER & PARTNERS,37014005,15844.42,S6 4JQ
Department of Health,NHS Sheffield CCG,30/06/2021,C&M-PMS Prem Rates,PRC DELEGATED CO-COMMISSIONING,DR MILNER & PARTNERS,37014005,1944,S6 4JQ
Department of Health,NHS Sheffield CCG,30/06/2021,C&M-PMS QOF Aspiration,PRC DELEGATED CO-COMMISSIONING,DR MILNER & PARTNERS,37014005,7550.33,S6 4JQ
Department of Health,NHS Sheffield CCG,30/06/2021,C&M-PMS Contract Value,PRC DELEGATED CO-COMMISSIONING,DR MILNER & PARTNERS,37014008,-2696.86,S6 4JQ
Department of Health,NHS Sheffield CCG,30/06/2021,C&M-PMS GP Statutory Levy,PRC DELEGATED CO-COMMISSIONING,DR MILNER & PARTNERS,37014008,-372.96,S6 4JQ
Department of Health,NHS Sheffield CCG,30/06/2021,C&M-PMS Out of Hours Opt Outs,PRC DELEGATED CO-COMMISSIONING,DR MILNER & PARTNERS,37014008,-3788.75,S6 4JQ
Department of Health,NHS Sheffield CCG,30/06/2021,C&M-PMS Prem Notional Rent,PRC DELEGATED CO-COMMISSIONING,DR MILNER & PARTNERS,37014008,-11382,S6 4JQ
Department of Health,NHS Sheffield CCG,30/06/2021,C&M-PMS QOF Aspiration,PRC DELEGATED CO-COMMISSIONING,DR MILNER & PARTNERS,37014008,-110.8,S6 4JQ
Department of Health,NHS Sheffield CCG,30/06/2021,C&M-PMS QOF Achievement,PRC DELEGATED CO-COMMISSIONING,DR MILNER & PARTNERS,37158842,32662.56,S6 4JQ
Department of Health,NHS Sheffield CCG,30/06/2021,C&M-GMS Global Sum,PRC DELEGATED CO-COMMISSIONING,DUKE MEDICAL CENTRE,37192907,66063.07,S2 2TD
Department of Health,NHS Sheffield CCG,30/06/2021,C&M-GMS PCN DES Participation,PRC DELEGATED CO-COMMISSIONING,DUKE MEDICAL CENTRE,37192907,1180.97,S2 2TD
Department of Health,NHS Sheffield CCG,30/06/2021,C&M-GMS Prem Notional Rent,PRC DELEGATED CO-COMMISSIONING,DUKE MEDICAL CENTRE,37192907,5721.67,S2 2TD
Department of Health,NHS Sheffield CCG,30/06/2021,C&M-GMS QOF Achievement,PRC DELEGATED CO-COMMISSIONING,DUKE MEDICAL CENTRE,37192907,28114.39,S2 2TD
Department of Health,NHS Sheffield CCG,30/06/2021,C&M-GMS QOF Aspiration,PRC DELEGATED CO-COMMISSIONING,DUKE MEDICAL CENTRE,37192907,6200.05,S2 2TD
Department of Health,NHS Sheffield CCG,30/06/2021,C&M-PMS Contract Value,PRC DELEGATED CO-COMMISSIONING,DYKES HALL MEDICAL CENTRE,37007540,74345.31,S6 4GQ
Department of Health,NHS Sheffield CCG,30/06/2021,C&M-PMS DES Extended Hours Access,PRC DELEGATED CO-COMMISSIONING,DYKES HALL MEDICAL CENTRE,37007540,4281.12,S6 4GQ
Department of Health,NHS Sheffield CCG,30/06/2021,C&M-PMS Funding Differential Review,PRC DELEGATED CO-COMMISSIONING,DYKES HALL MEDICAL CENTRE,37007540,1473.36,S6 4GQ
Department of Health,NHS Sheffield CCG,30/06/2021,C&M-PMS Out of Hours Opt Outs,PRC DELEGATED CO-COMMISSIONING,DYKES HALL MEDICAL CENTRE,37007540,63.13,S6 4GQ
Department of Health,NHS Sheffield CCG,30/06/2021,C&M-PMS PCN DES Clinical Director,PRC DELEGATED CO-COMMISSIONING,DYKES HALL MEDICAL CENTRE,37007540,2188.13,S6 4GQ
Department of Health,NHS Sheffield CCG,30/06/2021,C&M-PMS PCN DES PCN support,LOCAL ENHANCED SERVICES,DYKES HALL MEDICAL CENTRE,37007540,4459.5,S6 4GQ
Department of Health,NHS Sheffield CCG,30/06/2021,C&M-PMS PCN DES Participation,PRC DELEGATED CO-COMMISSIONING,DYKES HALL MEDICAL CENTRE,37007540,1345.01,S6 4GQ
Department of Health,NHS Sheffield CCG,30/06/2021,C&M-PMS Prem Notional Rent,PRC DELEGATED CO-COMMISSIONING,DYKES HALL MEDICAL CENTRE,37007540,5406.25,S6 4GQ
Department of Health,NHS Sheffield CCG,30/06/2021,C&M-PMS Prem Rates,PRC DELEGATED CO-COMMISSIONING,DYKES HALL MEDICAL CENTRE,37007540,2736.75,S6 4GQ
Department of Health,NHS Sheffield CCG,30/06/2021,C&M-PMS Prem Water Rates,PRC DELEGATED CO-COMMISSIONING,DYKES HALL MEDICAL CENTRE,37007540,476.5,S6 4GQ
Department of Health,NHS Sheffield CCG,30/06/2021,C&M-PMS QOF Aspiration,PRC DELEGATED CO-COMMISSIONING,DYKES HALL MEDICAL CENTRE,37007540,9390.15,S6 4GQ
Department of Health,NHS Sheffield CCG,30/06/2021,C&M-PMS QOF Achievement,PRC DELEGATED CO-COMMISSIONING,DYKES HALL MEDICAL CENTRE,37158837,40785.51,S6 4GQ
Department of Health,NHS Sheffield CCG,30/06/2021,C&M-PMS Contract Value,PRC DELEGATED CO-COMMISSIONING,EAST BANK MEDICAL CENTRE,37007541,52431.22,S2 2AG
Department of Health,NHS Sheffield CCG,30/06/2021,C&M-PMS PCN DES Participation,PRC DELEGATED CO-COMMISSIONING,EAST BANK MEDICAL CENTRE,37007541,945.64,S2 2AG
Department of Health,NHS Sheffield CCG,30/06/2021,C&M-PMS PCO Other,PRC DELEGATED CO-COMMISSIONING,EAST BANK MEDICAL CENTRE,37007541,4002,S2 2AG
Department of Health,NHS Sheffield CCG,30/06/2021,C&M-PMS Prem Notional Rent,PRC DELEGATED CO-COMMISSIONING,EAST BANK MEDICAL CENTRE,37007541,10583.33,S2 2AG
Department of Health,NHS Sheffield CCG,30/06/2021,C&M-PMS Prem Rates,PRC DELEGATED CO-COMMISSIONING,EAST BANK MEDICAL CENTRE,37007541,2065,S2 2AG
Department of Health,NHS Sheffield CCG,30/06/2021,C&M-PMS QOF Aspiration,PRC DELEGATED CO-COMMISSIONING,EAST BANK MEDICAL CENTRE,37007541,5744.23,S2 2AG
Department of Health,NHS Sheffield CCG,30/06/2021,C&M-GMS Global Sum,PRC DELEGATED CO-COMMISSIONING,ECCLESFIELD GROUP PRACTICE,37192911,75228.76,S35 9XQ
Department of Health,NHS Sheffield CCG,30/06/2021,C&M-GMS PCN DES Participation,PRC DELEGATED CO-COMMISSIONING,ECCLESFIELD GROUP PRACTICE,37192911,1441.13,S35 9XQ
Department of Health,NHS Sheffield CCG,30/06/2021,C&M-GMS Prem Notional Rent,PRC DELEGATED CO-COMMISSIONING,ECCLESFIELD GROUP PRACTICE,37192911,6899.17,S35 9XQ
Department of Health,NHS Sheffield CCG,30/06/2021,C&M-GMS QOF Achievement,PRC DELEGATED CO-COMMISSIONING,ECCLESFIELD GROUP PRACTICE,37192911,39587.23,S35 9XQ
Department of Health,NHS Sheffield CCG,30/06/2021,C&M-GMS QOF Aspiration,PRC DELEGATED CO-COMMISSIONING,ECCLESFIELD GROUP PRACTICE,37192911,9899.3,S35 9XQ
Department of Health,NHS Sheffield CCG,30/06/2021,C&M-GMS Global Sum,PRC DELEGATED CO-COMMISSIONING,ELM LANE SURGERY,37192915,45587.88,S5 7TW
Department of Health,NHS Sheffield CCG,30/06/2021,C&M-GMS PCN DES Participation,PRC DELEGATED CO-COMMISSIONING,ELM LANE SURGERY,37192915,865.86,S5 7TW
Department of Health,NHS Sheffield CCG,30/06/2021,C&M-GMS Prem Notional Rent,PRC DELEGATED CO-COMMISSIONING,ELM LANE SURGERY,37192915,5343,S5 7TW
Department of Health,NHS Sheffield CCG,30/06/2021,C&M-GMS QOF Achievement,PRC DELEGATED CO-COMMISSIONING,ELM LANE SURGERY,37192915,24346.33,S5 7TW
Department of Health,NHS Sheffield CCG,30/06/2021,C&M-GMS QOF Aspiration,PRC DELEGATED CO-COMMISSIONING,ELM LANE SURGERY,37192915,5528.96,S5 7TW
Department of Health,NHS Sheffield CCG,30/06/2021,Cont Care-Physical Disab (<65),CHC ADULT FULLY FUNDED,FAIRWINDS HEALTH CARE LTD,37072448,39011.53,S61 1AJ
Department of Health,NHS Sheffield CCG,30/06/2021,C&M-PMS Contract Value,PRC DELEGATED CO-COMMISSIONING,FALKLAND HOUSE,37007543,27786.21,S11 7PL
Department of Health,NHS Sheffield CCG,30/06/2021,C&M-PMS PCN DES Participation,PRC DELEGATED CO-COMMISSIONING,FALKLAND HOUSE,37007543,501.49,S11 7PL
Department of Health,NHS Sheffield CCG,30/06/2021,C&M-PMS PCO Other,PRC DELEGATED CO-COMMISSIONING,FALKLAND HOUSE,37007543,836.7,S11 7PL
Department of Health,NHS Sheffield CCG,30/06/2021,C&M-PMS Prem Notional Rent,PRC DELEGATED CO-COMMISSIONING,FALKLAND HOUSE,37007543,1866.67,S11 7PL
Department of Health,NHS Sheffield CCG,30/06/2021,C&M-PMS Prem Rates,PRC DELEGATED CO-COMMISSIONING,FALKLAND HOUSE,37007543,786,S11 7PL
Department of Health,NHS Sheffield CCG,30/06/2021,C&M-PMS QOF Aspiration,PRC DELEGATED CO-COMMISSIONING,FALKLAND HOUSE,37007543,3362.7,S11 7PL
Department of Health,NHS Sheffield CCG,30/06/2021,C&M-GMS Global Sum,PRC DELEGATED CO-COMMISSIONING,FAR LANE MEDICAL CENTRE,37192923,59147.86,S6 4FA
Department of Health,NHS Sheffield CCG,30/06/2021,C&M-GMS PCN DES Participation,PRC DELEGATED CO-COMMISSIONING,FAR LANE MEDICAL CENTRE,37192923,1139.22,S6 4FA
Department of Health,NHS Sheffield CCG,30/06/2021,C&M-GMS Prem Notional Rent,PRC DELEGATED CO-COMMISSIONING,FAR LANE MEDICAL CENTRE,37192923,3504.17,S6 4FA
Department of Health,NHS Sheffield CCG,30/06/2021,C&M-GMS QOF Achievement,PRC DELEGATED CO-COMMISSIONING,FAR LANE MEDICAL CENTRE,37192923,28561.21,S6 4FA
Department of Health,NHS Sheffield CCG,30/06/2021,C&M-GMS QOF Aspiration,PRC DELEGATED CO-COMMISSIONING,FAR LANE MEDICAL CENTRE,37192923,6827.86,S6 4FA
Department of Health,NHS Sheffield CCG,30/06/2021,C&M-PMS Contract Value,PRC DELEGATED CO-COMMISSIONING,FIRTH PARK SURGERY,37007545,80907.98,S5 6HH
Department of Health,NHS Sheffield CCG,30/06/2021,C&M-PMS Out of Hours Opt Outs,PRC DELEGATED CO-COMMISSIONING,FIRTH PARK SURGERY,37007545,47.77,S5 6HH
Department of Health,NHS Sheffield CCG,30/06/2021,C&M-PMS PCN DES Participation,PRC DELEGATED CO-COMMISSIONING,FIRTH PARK SURGERY,37007545,1461.7,S5 6HH
Department of Health,NHS Sheffield CCG,30/06/2021,C&M-PMS PCO Locum Sickness,PRC DELEGATED CO-COMMISSIONING,FIRTH PARK SURGERY,37007545,4875,S5 6HH
Department of Health,NHS Sheffield CCG,30/06/2021,C&M-PMS PCO Other,PRC DELEGATED CO-COMMISSIONING,FIRTH PARK SURGERY,37007545,6229,S5 6HH
Department of Health,NHS Sheffield CCG,30/06/2021,C&M-PMS Prem Notional Rent,PRC DELEGATED CO-COMMISSIONING,FIRTH PARK SURGERY,37007545,9000,S5 6HH
Department of Health,NHS Sheffield CCG,30/06/2021,C&M-PMS Prem Rates,PRC DELEGATED CO-COMMISSIONING,FIRTH PARK SURGERY,37007545,1508,S5 6HH
Department of Health,NHS Sheffield CCG,30/06/2021,C&M-PMS Prem Water Rates,PRC DELEGATED CO-COMMISSIONING,FIRTH PARK SURGERY,37007545,130.88,S5 6HH
Department of Health,NHS Sheffield CCG,30/06/2021,C&M-PMS QOF Aspiration,PRC DELEGATED CO-COMMISSIONING,FIRTH PARK SURGERY,37007545,8220.05,S5 6HH
Department of Health,NHS Sheffield CCG,30/06/2021,C&M-PMS QOF Achievement,PRC DELEGATED CO-COMMISSIONING,FIRTH PARK SURGERY,37158844,32763.74,S5 6HH
Department of Health,NHS Sheffield CCG,30/06/2021,C&M-PMS Contract Value,PRC DELEGATED CO-COMMISSIONING,FORGE HEALTH GROUP,37007529,127908.04,S3 9DL
Department of Health,NHS Sheffield CCG,30/06/2021,C&M-PMS DES Extended Hours Access,PRC DELEGATED CO-COMMISSIONING,FORGE HEALTH GROUP,37007529,6820.92,S3 9DL
Department of Health,NHS Sheffield CCG,30/06/2021,C&M-PMS PCN DES Clinical Director,PRC DELEGATED CO-COMMISSIONING,FORGE HEALTH GROUP,37007529,3486.25,S3 9DL
Department of Health,NHS Sheffield CCG,30/06/2021,C&M-PMS PCN DES PCN support,LOCAL ENHANCED SERVICES,FORGE HEALTH GROUP,37007529,7105.13,S3 9DL
Department of Health,NHS Sheffield CCG,30/06/2021,C&M-PMS PCN DES Participation,PRC DELEGATED CO-COMMISSIONING,FORGE HEALTH GROUP,37007529,2294.59,S3 9DL
Department of Health,NHS Sheffield CCG,30/06/2021,C&M-PMS PCO Locum Adop/Pat/Mat,PRC DELEGATED CO-COMMISSIONING,FORGE HEALTH GROUP,37007529,22473.42,S3 9DL
Department of Health,NHS Sheffield CCG,30/06/2021,C&M-PMS PCO Other,PRC DELEGATED CO-COMMISSIONING,FORGE HEALTH GROUP,37007529,8923,S3 9DL
Department of Health,NHS Sheffield CCG,30/06/2021,C&M-PMS Prem Healthcentre Rent,PRC DELEGATED CO-COMMISSIONING,FORGE HEALTH GROUP,37007529,35176.33,S3 9DL
Department of Health,NHS Sheffield CCG,30/06/2021,C&M-PMS Prem Notional Rent,PRC DELEGATED CO-COMMISSIONING,FORGE HEALTH GROUP,37007529,9891.67,S3 9DL
Department of Health,NHS Sheffield CCG,30/06/2021,C&M-PMS QOF Aspiration,PRC DELEGATED CO-COMMISSIONING,FORGE HEALTH GROUP,37007529,12932.51,S3 9DL
Department of Health,NHS Sheffield CCG,30/06/2021,C&M-PMS Contract Value,PRC DELEGATED CO-COMMISSIONING,FORGE HEALTH GROUP,37013970,-650.39,S3 9DL
Department of Health,NHS Sheffield CCG,30/06/2021,C&M-PMS GP Statutory Levy,PRC DELEGATED CO-COMMISSIONING,FORGE HEALTH GROUP,37013970,-520.49,S3 9DL
Department of Health,NHS Sheffield CCG,30/06/2021,C&M-PMS Out of Hours Opt Outs,PRC DELEGATED CO-COMMISSIONING,FORGE HEALTH GROUP,37013970,-6012.2,S3 9DL
Department of Health,NHS Sheffield CCG,30/06/2021,C&M-PMS QOF Aspiration,PRC DELEGATED CO-COMMISSIONING,FORGE HEALTH GROUP,37013970,-719.98,S3 9DL
Department of Health,NHS Sheffield CCG,30/06/2021,C&M-PMS QOF Achievement,PRC DELEGATED CO-COMMISSIONING,FORGE HEALTH GROUP,37158826,56476.12,S3 9DL
Department of Health,NHS Sheffield CCG,30/06/2021,Cont Care-Physical Disab (<65),CHC ADULT FULLY FUNDED,FOUR SEASONS HEALTH CARE LTD,37072443,25181,DL1 1RW
Department of Health,NHS Sheffield CCG,30/06/2021,C&M-PMS Contract Value,PRC DELEGATED CO-COMMISSIONING,FOXHILL MEDICAL CENTRE SHEFFIELD,37007517,53451.66,S6 1GA
Department of Health,NHS Sheffield CCG,30/06/2021,C&M-PMS Funding Differential Review,PRC DELEGATED CO-COMMISSIONING,FOXHILL MEDICAL CENTRE SHEFFIELD,37007517,1157.94,S6 1GA
Department of Health,NHS Sheffield CCG,30/06/2021,C&M-PMS Out of Hours Opt Outs,PRC DELEGATED CO-COMMISSIONING,FOXHILL MEDICAL CENTRE SHEFFIELD,37007517,34.51,S6 1GA
Department of Health,NHS Sheffield CCG,30/06/2021,C&M-PMS PCN DES Participation,PRC DELEGATED CO-COMMISSIONING,FOXHILL MEDICAL CENTRE SHEFFIELD,37007517,965.57,S6 1GA
Department of Health,NHS Sheffield CCG,30/06/2021,C&M-PMS Prem Healthcentre Rent,PRC DELEGATED CO-COMMISSIONING,FOXHILL MEDICAL CENTRE SHEFFIELD,37007517,49173.05,S6 1GA
Department of Health,NHS Sheffield CCG,30/06/2021,C&M-PMS QOF Aspiration,PRC DELEGATED CO-COMMISSIONING,FOXHILL MEDICAL CENTRE SHEFFIELD,37007517,6019.72,S6 1GA
Department of Health,NHS Sheffield CCG,30/06/2021,C&M-PMS Contract Value,PRC DELEGATED CO-COMMISSIONING,GLEADLESS MEDICAL CENTRE,37007519,71125.01,S14 1PQ
Department of Health,NHS Sheffield CCG,30/06/2021,C&M-PMS Funding Differential Review,PRC DELEGATED CO-COMMISSIONING,GLEADLESS MEDICAL CENTRE,37007519,1547.97,S14 1PQ
Department of Health,NHS Sheffield CCG,30/06/2021,C&M-PMS Out of Hours Opt Outs,PRC DELEGATED CO-COMMISSIONING,GLEADLESS MEDICAL CENTRE,37007519,126.61,S14 1PQ
Department of Health,NHS Sheffield CCG,30/06/2021,C&M-PMS PCN DES Participation,PRC DELEGATED CO-COMMISSIONING,GLEADLESS MEDICAL CENTRE,37007519,1285.55,S14 1PQ
Department of Health,NHS Sheffield CCG,30/06/2021,C&M-PMS PCO Other,PRC DELEGATED CO-COMMISSIONING,GLEADLESS MEDICAL CENTRE,37007519,556.4,S14 1PQ
Department of Health,NHS Sheffield CCG,30/06/2021,C&M-PMS Prem Notional Rent,PRC DELEGATED CO-COMMISSIONING,GLEADLESS MEDICAL CENTRE,37007519,6885.42,S14 1PQ
Department of Health,NHS Sheffield CCG,30/06/2021,C&M-PMS Prem Rates,PRC DELEGATED CO-COMMISSIONING,GLEADLESS MEDICAL CENTRE,37007519,1210,S14 1PQ
Department of Health,NHS Sheffield CCG,30/06/2021,C&M-PMS QOF Aspiration,PRC DELEGATED CO-COMMISSIONING,GLEADLESS MEDICAL CENTRE,37007519,8062.34,S14 1PQ
Department of Health,NHS Sheffield CCG,30/06/2021,C&M-PMS QOF Achievement,PRC DELEGATED CO-COMMISSIONING,GLEADLESS MEDICAL CENTRE,37158808,28840.5,S14 1PQ
Department of Health,NHS Sheffield CCG,30/06/2021,C&M-GMS Global Sum,PRC DELEGATED CO-COMMISSIONING,GRENOSIDE SURGERY,37192856,65655.08,S35 8NX
Department of Health,NHS Sheffield CCG,30/06/2021,C&M-GMS PCN DES Participation,PRC DELEGATED CO-COMMISSIONING,GRENOSIDE SURGERY,37192856,1250.62,S35 8NX
Department of Health,NHS Sheffield CCG,30/06/2021,C&M-GMS Prem Notional Rent,PRC DELEGATED CO-COMMISSIONING,GRENOSIDE SURGERY,37192856,8110.42,S35 8NX
Department of Health,NHS Sheffield CCG,30/06/2021,C&M-GMS QOF Achievement,PRC DELEGATED CO-COMMISSIONING,GRENOSIDE SURGERY,37192856,27049.41,S35 8NX
Department of Health,NHS Sheffield CCG,30/06/2021,C&M-GMS QOF Aspiration,PRC DELEGATED CO-COMMISSIONING,GRENOSIDE SURGERY,37192856,6590.45,S35 8NX
Department of Health,NHS Sheffield CCG,30/06/2021,C&M-GMS Global Sum,PRC DELEGATED CO-COMMISSIONING,GREYSTONES MEDICAL CENTRE,37192857,21394.6,S11 7BJ
Department of Health,NHS Sheffield CCG,30/06/2021,C&M-GMS PCN DES Participation,PRC DELEGATED CO-COMMISSIONING,GREYSTONES MEDICAL CENTRE,37192857,403.29,S11 7BJ
Department of Health,NHS Sheffield CCG,30/06/2021,C&M-GMS Prem Notional Rent,PRC DELEGATED CO-COMMISSIONING,GREYSTONES MEDICAL CENTRE,37192857,2885.42,S11 7BJ
Department of Health,NHS Sheffield CCG,30/06/2021,C&M-GMS Prem Rates,PRC DELEGATED CO-COMMISSIONING,GREYSTONES MEDICAL CENTRE,37192857,426,S11 7BJ
Department of Health,NHS Sheffield CCG,30/06/2021,C&M-GMS QOF Achievement,PRC DELEGATED CO-COMMISSIONING,GREYSTONES MEDICAL CENTRE,37192857,9040.54,S11 7BJ
Department of Health,NHS Sheffield CCG,30/06/2021,C&M-GMS QOF Aspiration,PRC DELEGATED CO-COMMISSIONING,GREYSTONES MEDICAL CENTRE,37192857,2481.16,S11 7BJ
Department of Health,NHS Sheffield CCG,30/06/2021,C&M-PMS Contract Value,PRC DELEGATED CO-COMMISSIONING,HACKENTHORPE MEDICAL CENTRE,37007520,51366.12,S12 4LA
Department of Health,NHS Sheffield CCG,30/06/2021,C&M-PMS Out of Hours Opt Outs,PRC DELEGATED CO-COMMISSIONING,HACKENTHORPE MEDICAL CENTRE,37007520,37.38,S12 4LA
Department of Health,NHS Sheffield CCG,30/06/2021,C&M-PMS PCN DES Participation,PRC DELEGATED CO-COMMISSIONING,HACKENTHORPE MEDICAL CENTRE,37007520,930.28,S12 4LA
Department of Health,NHS Sheffield CCG,30/06/2021,C&M-PMS PCO Other,PRC DELEGATED CO-COMMISSIONING,HACKENTHORPE MEDICAL CENTRE,37007520,434.8,S12 4LA
Department of Health,NHS Sheffield CCG,30/06/2021,C&M-PMS Prem Notional Rent,PRC DELEGATED CO-COMMISSIONING,HACKENTHORPE MEDICAL CENTRE,37007520,5116.67,S12 4LA
Department of Health,NHS Sheffield CCG,30/06/2021,C&M-PMS Prem Rates,PRC DELEGATED CO-COMMISSIONING,HACKENTHORPE MEDICAL CENTRE,37007520,861,S12 4LA
Department of Health,NHS Sheffield CCG,30/06/2021,C&M-PMS Prem Water Rates,PRC DELEGATED CO-COMMISSIONING,HACKENTHORPE MEDICAL CENTRE,37007520,99.16,S12 4LA
Department of Health,NHS Sheffield CCG,30/06/2021,C&M-PMS QOF Aspiration,PRC DELEGATED CO-COMMISSIONING,HACKENTHORPE MEDICAL CENTRE,37007520,7164.43,S12 4LA
Department of Health,NHS Sheffield CCG,30/06/2021,C&M-PMS QOF Achievement,PRC DELEGATED CO-COMMISSIONING,HACKENTHORPE MEDICAL CENTRE,37158813,27669.78,S12 4LA
Department of Health,NHS Sheffield CCG,30/06/2021,C&M-GMS Global Sum,PRC DELEGATED CO-COMMISSIONING,HANDSWORTH MEDICAL PRACTICE SHEFFIELD,37192850,84854.96,S13 9BZ
Department of Health,NHS Sheffield CCG,30/06/2021,C&M-GMS PCN DES Participation,PRC DELEGATED CO-COMMISSIONING,HANDSWORTH MEDICAL PRACTICE SHEFFIELD,37192850,1619.69,S13 9BZ
Department of Health,NHS Sheffield CCG,30/06/2021,C&M-GMS Prem Notional Rent,PRC DELEGATED CO-COMMISSIONING,HANDSWORTH MEDICAL PRACTICE SHEFFIELD,37192850,3321.66,S13 9BZ
Department of Health,NHS Sheffield CCG,30/06/2021,C&M-GMS QOF Achievement,PRC DELEGATED CO-COMMISSIONING,HANDSWORTH MEDICAL PRACTICE SHEFFIELD,37192850,35315.65,S13 9BZ
Department of Health,NHS Sheffield CCG,30/06/2021,C&M-GMS QOF Aspiration,PRC DELEGATED CO-COMMISSIONING,HANDSWORTH MEDICAL PRACTICE SHEFFIELD,37192850,8749.2,S13 9BZ
Department of Health,NHS Sheffield CCG,30/06/2021,C&M-GMS Global Sum,PRC DELEGATED CO-COMMISSIONING,HAROLD STREET MEDICAL CENTRE,37192851,19608.02,S6 3QW
Department of Health,NHS Sheffield CCG,30/06/2021,C&M-GMS PCN DES Participation,PRC DELEGATED CO-COMMISSIONING,HAROLD STREET MEDICAL CENTRE,37192851,393.03,S6 3QW
Department of Health,NHS Sheffield CCG,30/06/2021,C&M-GMS Prem Notional Rent,PRC DELEGATED CO-COMMISSIONING,HAROLD STREET MEDICAL CENTRE,37192851,2337.5,S6 3QW
Department of Health,NHS Sheffield CCG,30/06/2021,C&M-GMS QOF Achievement,PRC DELEGATED CO-COMMISSIONING,HAROLD STREET MEDICAL CENTRE,37192851,7635.79,S6 3QW
Department of Health,NHS Sheffield CCG,30/06/2021,C&M-GMS QOF Aspiration,PRC DELEGATED CO-COMMISSIONING,HAROLD STREET MEDICAL CENTRE,37192851,1914.66,S6 3QW
Department of Health,NHS Sheffield CCG,30/06/2021,C&M-PMS Contract Value,PRC DELEGATED CO-COMMISSIONING,HEALTH CARE SURGERY,37007539,65408.63,S5 8GS
Department of Health,NHS Sheffield CCG,30/06/2021,C&M-PMS Funding Differential Review,PRC DELEGATED CO-COMMISSIONING,HEALTH CARE SURGERY,37007539,506.77,S5 8GS
Department of Health,NHS Sheffield CCG,30/06/2021,C&M-PMS PCN DES Participation,PRC DELEGATED CO-COMMISSIONING,HEALTH CARE SURGERY,37007539,798.5,S5 8GS
Department of Health,NHS Sheffield CCG,30/06/2021,C&M-PMS Prem Notional Rent,PRC DELEGATED CO-COMMISSIONING,HEALTH CARE SURGERY,37007539,5558.33,S5 8GS
Department of Health,NHS Sheffield CCG,30/06/2021,C&M-PMS QOF Achievement,PRC DELEGATED CO-COMMISSIONING,HEALTH CARE SURGERY,37167426,43997.52,S5 8GS
Department of Health,NHS Sheffield CCG,30/06/2021,C&M-GMS DES Learn Dsblty Hlth Chk,PRC DELEGATED CO-COMMISSIONING,HEELEY GREEN SURGERY,37192860,140,S2 3AJ
Department of Health,NHS Sheffield CCG,30/06/2021,C&M-GMS Global Sum,PRC DELEGATED CO-COMMISSIONING,HEELEY GREEN SURGERY,37192860,44606.18,S2 3AJ
Department of Health,NHS Sheffield CCG,30/06/2021,C&M-GMS PCN DES Participation,PRC DELEGATED CO-COMMISSIONING,HEELEY GREEN SURGERY,37192860,848.8,S2 3AJ
Department of Health,NHS Sheffield CCG,30/06/2021,C&M-GMS Prem Notional Rent,PRC DELEGATED CO-COMMISSIONING,HEELEY GREEN SURGERY,37192860,3254.17,S2 3AJ
Department of Health,NHS Sheffield CCG,30/06/2021,C&M-GMS QOF Achievement,PRC DELEGATED CO-COMMISSIONING,HEELEY GREEN SURGERY,37192860,15373.1,S2 3AJ
Department of Health,NHS Sheffield CCG,30/06/2021,C&M-GMS QOF Aspiration,PRC DELEGATED CO-COMMISSIONING,HEELEY GREEN SURGERY,37192860,4674.69,S2 3AJ
Department of Health,NHS Sheffield CCG,30/06/2021,C&M-GMS DES Learn Dsblty Hlth Chk,PRC DELEGATED CO-COMMISSIONING,HOLLIES MEDICAL CENTRE,37192854,420,S11 9AL
Department of Health,NHS Sheffield CCG,30/06/2021,C&M-GMS Global Sum,PRC DELEGATED CO-COMMISSIONING,HOLLIES MEDICAL CENTRE,37192854,67443.78,S11 9AL
Department of Health,NHS Sheffield CCG,30/06/2021,C&M-GMS PCN DES Participation,PRC DELEGATED CO-COMMISSIONING,HOLLIES MEDICAL CENTRE,37192854,1270.72,S11 9AL
Department of Health,NHS Sheffield CCG,30/06/2021,C&M-GMS Prem Notional Rent,PRC DELEGATED CO-COMMISSIONING,HOLLIES MEDICAL CENTRE,37192854,3358.33,S11 9AL
Department of Health,NHS Sheffield CCG,30/06/2021,C&M-GMS QOF Achievement,PRC DELEGATED CO-COMMISSIONING,HOLLIES MEDICAL CENTRE,37192854,33514.1,S11 9AL
Department of Health,NHS Sheffield CCG,30/06/2021,C&M-GMS QOF Aspiration,PRC DELEGATED CO-COMMISSIONING,HOLLIES MEDICAL CENTRE,37192854,8186.06,S11 9AL
Department of Health,NHS Sheffield CCG,30/06/2021,Cont Care-Physical Disab (<65),CHC ADULT FULLY FUNDED,HORIZON CARE HOMES LTD,37072479,94520.28,S25 3QA
Department of Health,NHS Sheffield CCG,30/06/2021,Clinical&Medical-Serv Recd-F Trsts,ACUTE COMMISSIONING,HUMBER TEACHING NHS FOUNDATION TRUST,37065712,50920.34,WF3 1WE
Department of Health,NHS Sheffield CCG,30/06/2021,Cont Care-Physical Disab (<65),CHC ADULT FULLY FUNDED,INLET LTD,37072482,75394.02,S48NB
Department of Health,NHS Sheffield CCG,30/06/2021,C&M- PCN DES CARE COORDINATOR,PRC DELEGATED CO-COMMISSIONING,JAUNTY SPRINGS HEALTH CENTRE,37013956,1438.17,S12 3DZ
Department of Health,NHS Sheffield CCG,30/06/2021,C&M- PCN DES Nursing Associate,PRC DELEGATED CO-COMMISSIONING,JAUNTY SPRINGS HEALTH CENTRE,37013956,776.67,S12 3DZ
Department of Health,NHS Sheffield CCG,30/06/2021,C&M-PCN DES PHARMACY TECHNICIANS,PRC DELEGATED CO-COMMISSIONING,JAUNTY SPRINGS HEALTH CENTRE,37013956,963.04,S12 3DZ
Department of Health,NHS Sheffield CCG,30/06/2021,C&M-PMS Contract Value,PRC DELEGATED CO-COMMISSIONING,JAUNTY SPRINGS HEALTH CENTRE,37013956,32749.5,S12 3DZ
Department of Health,NHS Sheffield CCG,30/06/2021,C&M-PMS DES Extended Hours Access,PRC DELEGATED CO-COMMISSIONING,JAUNTY SPRINGS HEALTH CENTRE,37013956,4196.88,S12 3DZ
Department of Health,NHS Sheffield CCG,30/06/2021,C&M-PMS Out of Hours Opt Outs,PRC DELEGATED CO-COMMISSIONING,JAUNTY SPRINGS HEALTH CENTRE,37013956,15.42,S12 3DZ
Department of Health,NHS Sheffield CCG,30/06/2021,C&M-PMS PCN DES Clin Pharmacist,PRC DELEGATED CO-COMMISSIONING,JAUNTY SPRINGS HEALTH CENTRE,37013956,1484.53,S12 3DZ
Department of Health,NHS Sheffield CCG,30/06/2021,C&M-PMS PCN DES Clinical Director,PRC DELEGATED CO-COMMISSIONING,JAUNTY SPRINGS HEALTH CENTRE,37013956,2145.07,S12 3DZ
Department of Health,NHS Sheffield CCG,30/06/2021,C&M-PMS PCN DES PCN support,LOCAL ENHANCED SERVICES,JAUNTY SPRINGS HEALTH CENTRE,37013956,4371.75,S12 3DZ
Department of Health,NHS Sheffield CCG,30/06/2021,C&M-PMS PCN DES Participation,PRC DELEGATED CO-COMMISSIONING,JAUNTY SPRINGS HEALTH CENTRE,37013956,593.33,S12 3DZ
Department of Health,NHS Sheffield CCG,30/06/2021,C&M-PMS PCO Other,PRC DELEGATED CO-COMMISSIONING,JAUNTY SPRINGS HEALTH CENTRE,37013956,803.7,S12 3DZ
Department of Health,NHS Sheffield CCG,30/06/2021,C&M-PMS Prem Notional Rent,PRC DELEGATED CO-COMMISSIONING,JAUNTY SPRINGS HEALTH CENTRE,37013956,3208.33,S12 3DZ
Department of Health,NHS Sheffield CCG,30/06/2021,C&M-PMS Prem Rates,PRC DELEGATED CO-COMMISSIONING,JAUNTY SPRINGS HEALTH CENTRE,37013956,848,S12 3DZ
Department of Health,NHS Sheffield CCG,30/06/2021,C&M-PMS QOF Aspiration,PRC DELEGATED CO-COMMISSIONING,JAUNTY SPRINGS HEALTH CENTRE,37013956,4210.91,S12 3DZ
Department of Health,NHS Sheffield CCG,30/06/2021,Hcare Srv Rec NHS Trust-Contract Baseline,ACUTE COMMISSIONING,LEEDS TEACHING HOSPITALS NHS TRUST,37065705,48099.81,LS9 7TF
Department of Health,NHS Sheffield CCG,30/06/2021,Cont Care-Physical Disab (<65),CHC ADULT FULLY FUNDED,LONGLEY HEALTH CARE LTD,37072452,129316.2,S5 7JZ
Department of Health,NHS Sheffield CCG,30/06/2021,C&M-PMS Contract Value,PRC DELEGATED CO-COMMISSIONING,MANCHESTER ROAD SURGERY SHEFFIELD,37013959,35267.22,S10 5PN
Department of Health,NHS Sheffield CCG,30/06/2021,C&M-PMS Out of Hours Opt Outs,PRC DELEGATED CO-COMMISSIONING,MANCHESTER ROAD SURGERY SHEFFIELD,37013959,9.93,S10 5PN
Department of Health,NHS Sheffield CCG,30/06/2021,C&M-PMS PCN DES Participation,PRC DELEGATED CO-COMMISSIONING,MANCHESTER ROAD SURGERY SHEFFIELD,37013959,637.95,S10 5PN
Department of Health,NHS Sheffield CCG,30/06/2021,C&M-PMS PCO Locum Sickness,PRC DELEGATED CO-COMMISSIONING,MANCHESTER ROAD SURGERY SHEFFIELD,37013959,7110.84,S10 5PN
Department of Health,NHS Sheffield CCG,30/06/2021,C&M-PMS Prem Cost Rent,PRC DELEGATED CO-COMMISSIONING,MANCHESTER ROAD SURGERY SHEFFIELD,37013959,3077.32,S10 5PN
Department of Health,NHS Sheffield CCG,30/06/2021,C&M-PMS Prem Notional Rent,PRC DELEGATED CO-COMMISSIONING,MANCHESTER ROAD SURGERY SHEFFIELD,37013959,442.92,S10 5PN
Department of Health,NHS Sheffield CCG,30/06/2021,C&M-PMS Prem Rates,PRC DELEGATED CO-COMMISSIONING,MANCHESTER ROAD SURGERY SHEFFIELD,37013959,986,S10 5PN
Department of Health,NHS Sheffield CCG,30/06/2021,C&M-PMS QOF Aspiration,PRC DELEGATED CO-COMMISSIONING,MANCHESTER ROAD SURGERY SHEFFIELD,37013959,4335.38,S10 5PN
Department of Health,NHS Sheffield CCG,30/06/2021,C&M-PMS Contract Value,PRC DELEGATED CO-COMMISSIONING,MANOR & PARK GROUP PRACTICE,37010451,73683.38,S2 5QQ
Department of Health,NHS Sheffield CCG,30/06/2021,C&M-PMS Out of Hours Opt Outs,PRC DELEGATED CO-COMMISSIONING,MANOR & PARK GROUP PRACTICE,37010451,116.27,S2 5QQ
Department of Health,NHS Sheffield CCG,30/06/2021,C&M-PMS PCN DES Participation,PRC DELEGATED CO-COMMISSIONING,MANOR & PARK GROUP PRACTICE,37010451,1333.57,S2 5QQ
Department of Health,NHS Sheffield CCG,30/06/2021,C&M-PMS Prem Notional Rent,PRC DELEGATED CO-COMMISSIONING,MANOR & PARK GROUP PRACTICE,37010451,9112.5,S2 5QQ
Department of Health,NHS Sheffield CCG,30/06/2021,C&M-GMS Global Sum,PRC DELEGATED CO-COMMISSIONING,MATHEWS PRACTICE,37192933,59365.24,S2 4UJ
Department of Health,NHS Sheffield CCG,30/06/2021,C&M-GMS PCN DES Participation,PRC DELEGATED CO-COMMISSIONING,MATHEWS PRACTICE,37192933,1147.05,S2 4UJ
Department of Health,NHS Sheffield CCG,30/06/2021,C&M-GMS Prem Rates,PRC DELEGATED CO-COMMISSIONING,MATHEWS PRACTICE,37192933,1466,S2 4UJ
Department of Health,NHS Sheffield CCG,30/06/2021,C&M-GMS QOF Achievement,PRC DELEGATED CO-COMMISSIONING,MATHEWS PRACTICE,37192933,30264.07,S2 4UJ
Department of Health,NHS Sheffield CCG,30/06/2021,C&M-GMS QOF Aspiration,PRC DELEGATED CO-COMMISSIONING,MATHEWS PRACTICE,37192933,6845.8,S2 4UJ
Department of Health,NHS Sheffield CCG,30/06/2021,C&M-PMS Contract Value,PRC DELEGATED CO-COMMISSIONING,MEADOWHEAD GROUP PRACTICE,37007521,198576.81,S8 7RL
Department of Health,NHS Sheffield CCG,30/06/2021,C&M-PMS DES Learn Dsblty Hlth Chk,PRC DELEGATED CO-COMMISSIONING,MEADOWHEAD GROUP PRACTICE,37007521,280,S8 7RL
Department of Health,NHS Sheffield CCG,30/06/2021,C&M-PMS Funding Differential Review,PRC DELEGATED CO-COMMISSIONING,MEADOWHEAD GROUP PRACTICE,37007521,1641.85,S8 7RL
Department of Health,NHS Sheffield CCG,30/06/2021,C&M-PMS PCN DES Participation,PRC DELEGATED CO-COMMISSIONING,MEADOWHEAD GROUP PRACTICE,37007521,2652.53,S8 7RL
Department of Health,NHS Sheffield CCG,30/06/2021,C&M-PMS Prem Actual Rent,PRC DELEGATED CO-COMMISSIONING,MEADOWHEAD GROUP PRACTICE,37007521,3358.33,S8 7RL
Department of Health,NHS Sheffield CCG,30/06/2021,C&M-PMS Prem Cost Rent,PRC DELEGATED CO-COMMISSIONING,MEADOWHEAD GROUP PRACTICE,37007521,3647.42,S8 7RL
Department of Health,NHS Sheffield CCG,30/06/2021,C&M-PMS Prem Healthcentre Rent,PRC DELEGATED CO-COMMISSIONING,MEADOWHEAD GROUP PRACTICE,37007521,41665.03,S8 7RL
Department of Health,NHS Sheffield CCG,30/06/2021,C&M-PMS Prem Notional Rent,PRC DELEGATED CO-COMMISSIONING,MEADOWHEAD GROUP PRACTICE,37007521,5546.67,S8 7RL
Department of Health,NHS Sheffield CCG,30/06/2021,C&M-PMS Prem Rates,PRC DELEGATED CO-COMMISSIONING,MEADOWHEAD GROUP PRACTICE,37007521,798,S8 7RL
Department of Health,NHS Sheffield CCG,30/06/2021,C&M-PMS QOF Aspiration,PRC DELEGATED CO-COMMISSIONING,MEADOWHEAD GROUP PRACTICE,37007521,18549.4,S8 7RL
Department of Health,NHS Sheffield CCG,30/06/2021,C&M-PMS Contract Value,PRC DELEGATED CO-COMMISSIONING,MEADOWHEAD GROUP PRACTICE,37013962,-751.85,S8 7RL
Department of Health,NHS Sheffield CCG,30/06/2021,C&M-PMS GP Statutory Levy,PRC DELEGATED CO-COMMISSIONING,MEADOWHEAD GROUP PRACTICE,37013962,-648.94,S8 7RL
Department of Health,NHS Sheffield CCG,30/06/2021,C&M-PMS Out of Hours Opt Outs,PRC DELEGATED CO-COMMISSIONING,MEADOWHEAD GROUP PRACTICE,37013962,-9296.8,S8 7RL
Department of Health,NHS Sheffield CCG,30/06/2021,C&M-PMS Prem Actual Rent,PRC DELEGATED CO-COMMISSIONING,MEADOWHEAD GROUP PRACTICE,37013962,-10075,S8 7RL
Department of Health,NHS Sheffield CCG,30/06/2021,C&M-PMS Prem Cost Rent,PRC DELEGATED CO-COMMISSIONING,MEADOWHEAD GROUP PRACTICE,37013962,-10942.25,S8 7RL
Department of Health,NHS Sheffield CCG,30/06/2021,C&M-PMS Prem Healthcentre Rent,PRC DELEGATED CO-COMMISSIONING,MEADOWHEAD GROUP PRACTICE,37013962,-2301.42,S8 7RL
Department of Health,NHS Sheffield CCG,30/06/2021,C&M-PMS QOF Aspiration,PRC DELEGATED CO-COMMISSIONING,MEADOWHEAD GROUP PRACTICE,37013962,-161.74,S8 7RL
Department of Health,NHS Sheffield CCG,30/06/2021,C&M-PMS QOF Achievement,PRC DELEGATED CO-COMMISSIONING,MEADOWHEAD GROUP PRACTICE,37158816,156941.48,S8 7RL
Department of Health,NHS Sheffield CCG,30/06/2021,C&M-GMS Global Sum,PRC DELEGATED CO-COMMISSIONING,MEDICAL CENTRE CRYSTAL PEAKS,37192917,50958.49,S20 7HZ
Department of Health,NHS Sheffield CCG,30/06/2021,C&M-GMS PCN DES Participation,PRC DELEGATED CO-COMMISSIONING,MEDICAL CENTRE CRYSTAL PEAKS,37192917,978.29,S20 7HZ
Department of Health,NHS Sheffield CCG,30/06/2021,C&M-GMS Prem Notional Rent,PRC DELEGATED CO-COMMISSIONING,MEDICAL CENTRE CRYSTAL PEAKS,37192917,270,S20 7HZ
Department of Health,NHS Sheffield CCG,30/06/2021,C&M-GMS QOF Achievement,PRC DELEGATED CO-COMMISSIONING,MEDICAL CENTRE CRYSTAL PEAKS,37192917,29235.77,S20 7HZ
Department of Health,NHS Sheffield CCG,30/06/2021,C&M-GMS QOF Aspiration,PRC DELEGATED CO-COMMISSIONING,MEDICAL CENTRE CRYSTAL PEAKS,37192917,7126.23,S20 7HZ
Department of Health,NHS Sheffield CCG,30/06/2021,C&M-GMS Global Sum,PRC DELEGATED CO-COMMISSIONING,MILL ROAD SURGERY SHEFFIELD,37192865,44036.47,S35 9XQ
Department of Health,NHS Sheffield CCG,30/06/2021,C&M-GMS PCN DES Participation,PRC DELEGATED CO-COMMISSIONING,MILL ROAD SURGERY SHEFFIELD,37192865,838.81,S35 9XQ
Department of Health,NHS Sheffield CCG,30/06/2021,C&M-GMS Prem Notional Rent,PRC DELEGATED CO-COMMISSIONING,MILL ROAD SURGERY SHEFFIELD,37192865,4593.33,S35 9XQ
Department of Health,NHS Sheffield CCG,30/06/2021,C&M-GMS QOF Achievement,PRC DELEGATED CO-COMMISSIONING,MILL ROAD SURGERY SHEFFIELD,37192865,22064.59,S35 9XQ
Department of Health,NHS Sheffield CCG,30/06/2021,C&M-GMS QOF Aspiration,PRC DELEGATED CO-COMMISSIONING,MILL ROAD SURGERY SHEFFIELD,37192865,5365.62,S35 9XQ
Department of Health,NHS Sheffield CCG,30/06/2021,C&M-PMS Contract Value,PRC DELEGATED CO-COMMISSIONING,MOSBOROUGH HEALTH CENTRE,37007523,53688.83,S20 5BQ
Department of Health,NHS Sheffield CCG,30/06/2021,C&M-PMS Out of Hours Opt Outs,PRC DELEGATED CO-COMMISSIONING,MOSBOROUGH HEALTH CENTRE,37007523,18.99,S20 5BQ
Department of Health,NHS Sheffield CCG,30/06/2021,C&M-PMS PCN DES Participation,PRC DELEGATED CO-COMMISSIONING,MOSBOROUGH HEALTH CENTRE,37007523,972.62,S20 5BQ
Department of Health,NHS Sheffield CCG,30/06/2021,C&M-PMS PCO Other,PRC DELEGATED CO-COMMISSIONING,MOSBOROUGH HEALTH CENTRE,37007523,1343.4,S20 5BQ
Department of Health,NHS Sheffield CCG,30/06/2021,C&M-PMS Prem Notional Rent,PRC DELEGATED CO-COMMISSIONING,MOSBOROUGH HEALTH CENTRE,37007523,4541.67,S20 5BQ
Department of Health,NHS Sheffield CCG,30/06/2021,C&M-PMS Prem Rates,PRC DELEGATED CO-COMMISSIONING,MOSBOROUGH HEALTH CENTRE,37007523,711,S20 5BQ
Department of Health,NHS Sheffield CCG,30/06/2021,C&M-PMS QOF Aspiration,PRC DELEGATED CO-COMMISSIONING,MOSBOROUGH HEALTH CENTRE,37007523,6344.52,S20 5BQ
Department of Health,NHS Sheffield CCG,30/06/2021,C&M-PMS QOF Achievement,PRC DELEGATED CO-COMMISSIONING,MOSBOROUGH HEALTH CENTRE,37158819,25828.9,S20 5BQ
Department of Health,NHS Sheffield CCG,30/06/2021,C&M-PMS Contract Value,PRC DELEGATED CO-COMMISSIONING,NETHERGREEN SURGERY,37007522,68715.8,S11 7EJ
Department of Health,NHS Sheffield CCG,30/06/2021,C&M-PMS Funding Differential Review,PRC DELEGATED CO-COMMISSIONING,NETHERGREEN SURGERY,37007522,1369.87,S11 7EJ
Department of Health,NHS Sheffield CCG,30/06/2021,C&M-PMS PCN DES Participation,PRC DELEGATED CO-COMMISSIONING,NETHERGREEN SURGERY,37007522,1216.05,S11 7EJ
Department of Health,NHS Sheffield CCG,30/06/2021,C&M-PMS PCO Locum Sickness,PRC DELEGATED CO-COMMISSIONING,NETHERGREEN SURGERY,37007522,7006.08,S11 7EJ
Department of Health,NHS Sheffield CCG,30/06/2021,C&M-PMS PCO Other,PRC DELEGATED CO-COMMISSIONING,NETHERGREEN SURGERY,37007522,5801,S11 7EJ
Department of Health,NHS Sheffield CCG,30/06/2021,C&M-PMS Prem Cost Rent,PRC DELEGATED CO-COMMISSIONING,NETHERGREEN SURGERY,37007522,5057.33,S11 7EJ
Department of Health,NHS Sheffield CCG,30/06/2021,C&M-PMS Prem Rates,PRC DELEGATED CO-COMMISSIONING,NETHERGREEN SURGERY,37007522,3854.25,S11 7EJ
Department of Health,NHS Sheffield CCG,30/06/2021,C&M-PMS QOF Aspiration,PRC DELEGATED CO-COMMISSIONING,NETHERGREEN SURGERY,37007522,7008.62,S11 7EJ
Department of Health,NHS Sheffield CCG,30/06/2021,C&M-PMS QOF Achievement,PRC DELEGATED CO-COMMISSIONING,NETHERGREEN SURGERY,37158818,30261.52,S11 7EJ
Department of Health,NHS Sheffield CCG,30/06/2021,Charges from CSU,BUSINESS INFORMATICS,NHS NORTH OF ENGLAND CSU,36926780,53109.33,WF3 1WE
Department of Health,NHS Sheffield CCG,30/06/2021,Charges from CSU,BUSINESS INFORMATICS,NHS NORTH OF ENGLAND CSU,37108232,26554.67,WF3 1WE
Department of Health,NHS Sheffield CCG,30/06/2021,C&M-GMS Global Sum,PRC DELEGATED CO-COMMISSIONING,NORFOLK PARK HEALTH CENTRE,37192867,44219.75,S2 3TA
Department of Health,NHS Sheffield CCG,30/06/2021,C&M-GMS PCN DES Participation,PRC DELEGATED CO-COMMISSIONING,NORFOLK PARK HEALTH CENTRE,37192867,820.08,S2 3TA
Department of Health,NHS Sheffield CCG,30/06/2021,C&M-GMS Prem Healthcentre Rent,PRC DELEGATED CO-COMMISSIONING,NORFOLK PARK HEALTH CENTRE,37192867,25249.98,S2 3TA
Department of Health,NHS Sheffield CCG,30/06/2021,C&M-GMS QOF Achievement,PRC DELEGATED CO-COMMISSIONING,NORFOLK PARK HEALTH CENTRE,37192867,19022.77,S2 3TA
Department of Health,NHS Sheffield CCG,30/06/2021,C&M-GMS QOF Aspiration,PRC DELEGATED CO-COMMISSIONING,NORFOLK PARK HEALTH CENTRE,37192867,4434.09,S2 3TA
Department of Health,NHS Sheffield CCG,30/06/2021,C&M-GMS Global Sum,PRC DELEGATED CO-COMMISSIONING,NORWOOD MEDICAL CENTRE SHEFFIELD,37192870,69646.96,S5 7HD
Department of Health,NHS Sheffield CCG,30/06/2021,C&M-GMS PCN DES Participation,PRC DELEGATED CO-COMMISSIONING,NORWOOD MEDICAL CENTRE SHEFFIELD,37192870,1332.45,S5 7HD
Department of Health,NHS Sheffield CCG,30/06/2021,C&M-GMS Prem Notional Rent,PRC DELEGATED CO-COMMISSIONING,NORWOOD MEDICAL CENTRE SHEFFIELD,37192870,5187.5,S5 7HD
Department of Health,NHS Sheffield CCG,30/06/2021,C&M-GMS QOF Achievement,PRC DELEGATED CO-COMMISSIONING,NORWOOD MEDICAL CENTRE SHEFFIELD,37192870,30617.82,S5 7HD
Department of Health,NHS Sheffield CCG,30/06/2021,C&M-GMS QOF Aspiration,PRC DELEGATED CO-COMMISSIONING,NORWOOD MEDICAL CENTRE SHEFFIELD,37192870,8469.31,S5 7HD
Department of Health,NHS Sheffield CCG,30/06/2021,Clinical&Medical-Independent Sector,ACUTE COMMISSIONING,ONEHEALTH GROUP,37170774,46705.04,S11 8UX
Department of Health,NHS Sheffield CCG,30/06/2021,C&M-GMS Global Sum,PRC DELEGATED CO-COMMISSIONING,OUGHTIBRIDGE SURGERY,37192877,46639.68,S35 0FW
Department of Health,NHS Sheffield CCG,30/06/2021,C&M-GMS PCN DES Participation,PRC DELEGATED CO-COMMISSIONING,OUGHTIBRIDGE SURGERY,37192877,886,S35 0FW
Department of Health,NHS Sheffield CCG,30/06/2021,C&M-GMS Prem Notional Rent,PRC DELEGATED CO-COMMISSIONING,OUGHTIBRIDGE SURGERY,37192877,4064.58,S35 0FW
Department of Health,NHS Sheffield CCG,30/06/2021,C&M-GMS QOF Achievement,PRC DELEGATED CO-COMMISSIONING,OUGHTIBRIDGE SURGERY,37192877,20275.26,S35 0FW
Department of Health,NHS Sheffield CCG,30/06/2021,C&M-GMS QOF Aspiration,PRC DELEGATED CO-COMMISSIONING,OUGHTIBRIDGE SURGERY,37192877,4819.4,S35 0FW
Department of Health,NHS Sheffield CCG,30/06/2021,C&M-PMS Contract Value,PRC DELEGATED CO-COMMISSIONING,OWLTHORPE MEDICAL CENTRE,37007528,34637.97,S20 6PD
Department of Health,NHS Sheffield CCG,30/06/2021,C&M-PMS PCN DES Participation,PRC DELEGATED CO-COMMISSIONING,OWLTHORPE MEDICAL CENTRE,37007528,625.13,S20 6PD
Department of Health,NHS Sheffield CCG,30/06/2021,C&M-PMS Prem Actual Rent,PRC DELEGATED CO-COMMISSIONING,OWLTHORPE MEDICAL CENTRE,37007528,7539.58,S20 6PD
Department of Health,NHS Sheffield CCG,30/06/2021,C&M-PMS QOF Aspiration,PRC DELEGATED CO-COMMISSIONING,OWLTHORPE MEDICAL CENTRE,37007528,4236.51,S20 6PD
Department of Health,NHS Sheffield CCG,30/06/2021,C&M-PMS Contract Value,PRC DELEGATED CO-COMMISSIONING,PAGE HALL MEDICAL CENTRE,37007530,60848.74,S4 8GB
Department of Health,NHS Sheffield CCG,30/06/2021,C&M-PMS Funding Differential Review,PRC DELEGATED CO-COMMISSIONING,PAGE HALL MEDICAL CENTRE,37007530,1161.37,S4 8GB
Department of Health,NHS Sheffield CCG,30/06/2021,C&M-PMS Out of Hours Opt Outs,PRC DELEGATED CO-COMMISSIONING,PAGE HALL MEDICAL CENTRE,37007530,21.97,S4 8GB
Department of Health,NHS Sheffield CCG,30/06/2021,C&M-PMS PCN DES Participation,PRC DELEGATED CO-COMMISSIONING,PAGE HALL MEDICAL CENTRE,37007530,1099.51,S4 8GB
Department of Health,NHS Sheffield CCG,30/06/2021,C&M-PMS Prem Notional Rent,PRC DELEGATED CO-COMMISSIONING,PAGE HALL MEDICAL CENTRE,37007530,4833.33,S4 8GB
Department of Health,NHS Sheffield CCG,30/06/2021,C&M-PMS Prem Rates,PRC DELEGATED CO-COMMISSIONING,PAGE HALL MEDICAL CENTRE,37007530,848,S4 8GB
Department of Health,NHS Sheffield CCG,30/06/2021,C&M-PMS Prem Water Rates,PRC DELEGATED CO-COMMISSIONING,PAGE HALL MEDICAL CENTRE,37007530,191.57,S4 8GB
Department of Health,NHS Sheffield CCG,30/06/2021,C&M-PMS QOF Aspiration,PRC DELEGATED CO-COMMISSIONING,PAGE HALL MEDICAL CENTRE,37007530,5333.21,S4 8GB
Department of Health,NHS Sheffield CCG,30/06/2021,C&M-PMS QOF Achievement,PRC DELEGATED CO-COMMISSIONING,PAGE HALL MEDICAL CENTRE,37158828,28523.12,S4 8GB
Department of Health,NHS Sheffield CCG,30/06/2021,C&M-GP PRACTICE REVENUE - PCTF,LOCAL ENHANCED SERVICES,PORTER BROOK MEDICAL CENTRE,37013971,24000,S11 8HN
Department of Health,NHS Sheffield CCG,30/06/2021,C&M-PMS Contract Value,PRC DELEGATED CO-COMMISSIONING,PORTER BROOK MEDICAL CENTRE,37013971,167407.36,S11 8HN
Department of Health,NHS Sheffield CCG,30/06/2021,C&M-PMS DES Learn Dsblty Hlth Chk,PRC DELEGATED CO-COMMISSIONING,PORTER BROOK MEDICAL CENTRE,37013971,140,S11 8HN
Department of Health,NHS Sheffield CCG,30/06/2021,C&M-PMS Funding Differential Review,PRC DELEGATED CO-COMMISSIONING,PORTER BROOK MEDICAL CENTRE,37013971,3636.27,S11 8HN
Department of Health,NHS Sheffield CCG,30/06/2021,C&M-PMS Out of Hours Opt Outs,PRC DELEGATED CO-COMMISSIONING,PORTER BROOK MEDICAL CENTRE,37013971,171.92,S11 8HN
Department of Health,NHS Sheffield CCG,30/06/2021,C&M-PMS PCN DES Participation,PRC DELEGATED CO-COMMISSIONING,PORTER BROOK MEDICAL CENTRE,37013971,3019.37,S11 8HN
Department of Health,NHS Sheffield CCG,30/06/2021,C&M-PMS Prem Actual Rent,PRC DELEGATED CO-COMMISSIONING,PORTER BROOK MEDICAL CENTRE,37013971,1666.67,S11 8HN
Department of Health,NHS Sheffield CCG,30/06/2021,C&M-PMS Prem Notional Rent,PRC DELEGATED CO-COMMISSIONING,PORTER BROOK MEDICAL CENTRE,37013971,11333.34,S11 8HN
Department of Health,NHS Sheffield CCG,30/06/2021,C&M-PMS Prem Rates,PRC DELEGATED CO-COMMISSIONING,PORTER BROOK MEDICAL CENTRE,37013971,1812,S11 8HN
Department of Health,NHS Sheffield CCG,30/06/2021,C&M-PMS Prem Water Rates,PRC DELEGATED CO-COMMISSIONING,PORTER BROOK MEDICAL CENTRE,37013971,167.06,S11 8HN
Department of Health,NHS Sheffield CCG,30/06/2021,C&M-PMS QOF Aspiration,PRC DELEGATED CO-COMMISSIONING,PORTER BROOK MEDICAL CENTRE,37013971,11138.7,S11 8HN
Department of Health,NHS Sheffield CCG,30/06/2021,C&M-PMS Contract Value,PRC DELEGATED CO-COMMISSIONING,PORTER BROOK MEDICAL CENTRE,37013972,-4586.42,S11 8HN
Department of Health,NHS Sheffield CCG,30/06/2021,C&M-PMS GP Statutory Levy,PRC DELEGATED CO-COMMISSIONING,PORTER BROOK MEDICAL CENTRE,37013972,-995.86,S11 8HN
Department of Health,NHS Sheffield CCG,30/06/2021,C&M-PMS Out of Hours Opt Outs,PRC DELEGATED CO-COMMISSIONING,PORTER BROOK MEDICAL CENTRE,37013972,-7856.53,S11 8HN
Department of Health,NHS Sheffield CCG,30/06/2021,C&M-PMS Prem Notional Rent,PRC DELEGATED CO-COMMISSIONING,PORTER BROOK MEDICAL CENTRE,37013972,-1666.67,S11 8HN
Department of Health,NHS Sheffield CCG,30/06/2021,C&M-PMS QOF Aspiration,PRC DELEGATED CO-COMMISSIONING,PORTER BROOK MEDICAL CENTRE,37013972,-118.71,S11 8HN
Department of Health,NHS Sheffield CCG,30/06/2021,C&M-PMS QOF Achievement,PRC DELEGATED CO-COMMISSIONING,PORTER BROOK MEDICAL CENTRE,37158827,43602.11,S11 8HN
Department of Health,NHS Sheffield CCG,30/06/2021,Clinical&Medical-Commercial Sector,PATIENT TRANSPORT,PREMIER CARE DIRECT LTD,36926754,112480.55,DN4 5NU
Department of Health,NHS Sheffield CCG,30/06/2021,C&M-GMS LES Basket of Procedures,LOCAL ENHANCED SERVICES,PRIMARY CARE SHEFFIELD LTD,36927004,53558.33,S12 3GH
Department of Health,NHS Sheffield CCG,30/06/2021,C&M-APMS DES Extended Hours Access,GP FORWARD VIEW,PRIMARY CARE SHEFFIELD LTD,36927011,309441.67,S12 3GH
Department of Health,NHS Sheffield CCG,30/06/2021,C&M-GMS C&M-APMS PCN DES Physician Assoc,PRC DELEGATED CO-COMMISSIONING,PRIMARY CARE SHEFFIELD LTD,37023752,4355.7,S9 4EU
Department of Health,NHS Sheffield CCG,30/06/2021,C&M-GMS PCN DES Clin Pharmacist,PRC DELEGATED CO-COMMISSIONING,PRIMARY CARE SHEFFIELD LTD,37023752,8017.62,S9 4EU
Department of Health,NHS Sheffield CCG,30/06/2021,C&M-GMS PCN DES Home/RR paramedic,PRC DELEGATED CO-COMMISSIONING,PRIMARY CARE SHEFFIELD LTD,37023752,4529.24,S9 4EU
Department of Health,NHS Sheffield CCG,30/06/2021,C&M-GMS PCN DES Physiotherapist,PRC DELEGATED CO-COMMISSIONING,PRIMARY CARE SHEFFIELD LTD,37023752,4735.75,S9 4EU
Department of Health,NHS Sheffield CCG,30/06/2021,C&M-GMS PCN DES Soc Prescribing,PRC DELEGATED CO-COMMISSIONING,PRIMARY CARE SHEFFIELD LTD,37023752,4272.8,S9 4EU
Department of Health,NHS Sheffield CCG,30/06/2021,C&M-PCN DES OCCUPATIONAL THERAPISTS,PRC DELEGATED CO-COMMISSIONING,PRIMARY CARE SHEFFIELD LTD,37023752,4267.1,S9 4EU
Department of Health,NHS Sheffield CCG,30/06/2021,C&M-PCN DES PHARMACY TECHNICIANS,PRC DELEGATED CO-COMMISSIONING,PRIMARY CARE SHEFFIELD LTD,37023752,3009.5,S9 4EU
Department of Health,NHS Sheffield CCG,30/06/2021,C&M-GMS C&M-APMS PCN DES Physician Assoc,PRC DELEGATED CO-COMMISSIONING,PRIMARY CARE SHEFFIELD LTD,37023789,8539.18,S9 4EU
Department of Health,NHS Sheffield CCG,30/06/2021,C&M-GMS PCN DES Clin Pharmacist,PRC DELEGATED CO-COMMISSIONING,PRIMARY CARE SHEFFIELD LTD,37023789,13828.39,S9 4EU
Department of Health,NHS Sheffield CCG,30/06/2021,C&M-GMS PCN DES Physiotherapist,PRC DELEGATED CO-COMMISSIONING,PRIMARY CARE SHEFFIELD LTD,37023789,5176.17,S9 4EU
Department of Health,NHS Sheffield CCG,30/06/2021,C&M-GMS PCN DES Soc Prescribing,PRC DELEGATED CO-COMMISSIONING,PRIMARY CARE SHEFFIELD LTD,37023789,2333.33,S9 4EU
Department of Health,NHS Sheffield CCG,30/06/2021,C&M-PCN DES Trainee Nursing Associate,PRC DELEGATED CO-COMMISSIONING,PRIMARY CARE SHEFFIELD LTD,37023789,1896.41,S9 4EU
Department of Health,NHS Sheffield CCG,30/06/2021,C&M-GMS C&M-APMS PCN DES Physician Assoc,PRC DELEGATED CO-COMMISSIONING,PRIMARY CARE SHEFFIELD LTD,37122628,7195.58,S9 4EU
Department of Health,NHS Sheffield CCG,30/06/2021,C&M-GMS PCN DES Clin Pharmacist,PRC DELEGATED CO-COMMISSIONING,PRIMARY CARE SHEFFIELD LTD,37122628,9784.05,S9 4EU
Department of Health,NHS Sheffield CCG,30/06/2021,C&M-GMS PCN DES Physiotherapist,PRC DELEGATED CO-COMMISSIONING,PRIMARY CARE SHEFFIELD LTD,37122628,6312.75,S9 4EU
Department of Health,NHS Sheffield CCG,30/06/2021,C&M-GMS PCN DES Soc Prescribing,PRC DELEGATED CO-COMMISSIONING,PRIMARY CARE SHEFFIELD LTD,37122628,5315,S9 4EU
Department of Health,NHS Sheffield CCG,30/06/2021,C&M-PCN DES DIETICIANS,PRC DELEGATED CO-COMMISSIONING,PRIMARY CARE SHEFFIELD LTD,37122628,4160.08,S9 4EU
Department of Health,NHS Sheffield CCG,30/06/2021,C&M-PCN DES HEALTH AND WELLBEING COACH,PRC DELEGATED CO-COMMISSIONING,PRIMARY CARE SHEFFIELD LTD,37122628,1604.06,S9 4EU
Department of Health,NHS Sheffield CCG,30/06/2021,C&M-PCN DES PHARMACY TECHNICIANS,PRC DELEGATED CO-COMMISSIONING,PRIMARY CARE SHEFFIELD LTD,37122628,3009.5,S9 4EU
Department of Health,NHS Sheffield CCG,30/06/2021,C&M-GMS PCN DES Clin Pharmacist,PRC DELEGATED CO-COMMISSIONING,PRIMARY CARE SHEFFIELD LTD,37122640,17629.22,S9 4EU
Department of Health,NHS Sheffield CCG,30/06/2021,C&M-GMS PCN DES Physiotherapist,PRC DELEGATED CO-COMMISSIONING,PRIMARY CARE SHEFFIELD LTD,37122640,4667.5,S9 4EU
Department of Health,NHS Sheffield CCG,30/06/2021,C&M-GMS PCN DES Soc Prescribing,PRC DELEGATED CO-COMMISSIONING,PRIMARY CARE SHEFFIELD LTD,37122640,3698.65,S9 4EU
Department of Health,NHS Sheffield CCG,30/06/2021,C&M- PCN DES CARE COORDINATOR,PRC DELEGATED CO-COMMISSIONING,PRIMARY CARE SHEFFIELD LTD,37171000,16253.73,S9 4EU
Department of Health,NHS Sheffield CCG,30/06/2021,C&M-GMS C&M-APMS PCN DES Physician Assoc,PRC DELEGATED CO-COMMISSIONING,PRIMARY CARE SHEFFIELD LTD,37171000,8836.43,S9 4EU
Department of Health,NHS Sheffield CCG,30/06/2021,C&M-GMS PCN DES Clin Pharmacist,PRC DELEGATED CO-COMMISSIONING,PRIMARY CARE SHEFFIELD LTD,37171000,10421.59,S9 4EU
Department of Health,NHS Sheffield CCG,30/06/2021,C&M-GMS PCN DES Physiotherapist,PRC DELEGATED CO-COMMISSIONING,PRIMARY CARE SHEFFIELD LTD,37171000,4667.08,S9 4EU
Department of Health,NHS Sheffield CCG,30/06/2021,C&M-GMS PCN DES Soc Prescribing,PRC DELEGATED CO-COMMISSIONING,PRIMARY CARE SHEFFIELD LTD,37171000,5258.69,S9 4EU
Department of Health,NHS Sheffield CCG,30/06/2021,C&M-PCN DES PHARMACY TECHNICIANS,PRC DELEGATED CO-COMMISSIONING,PRIMARY CARE SHEFFIELD LTD,37171000,2741.69,S9 4EU
Department of Health,NHS Sheffield CCG,30/06/2021,C&M-GMS PCN DES Clin Pharmacist,PRC DELEGATED CO-COMMISSIONING,PRIMARY CARE SHEFFIELD LTD,37241590,22768.83,S9 4EU
Department of Health,NHS Sheffield CCG,30/06/2021,C&M-GMS PCN DES Soc Prescribing,PRC DELEGATED CO-COMMISSIONING,PRIMARY CARE SHEFFIELD LTD,37241590,2970.38,S9 4EU
Department of Health,NHS Sheffield CCG,30/06/2021,C&M-PCN DES PHARMACY TECHNICIANS,PRC DELEGATED CO-COMMISSIONING,PRIMARY CARE SHEFFIELD LTD,37241590,6302.64,S9 4EU
Department of Health,NHS Sheffield CCG,30/06/2021,C&M-GMS C&M-APMS PCN DES Physician Assoc,PRC DELEGATED CO-COMMISSIONING,PRIMARY CARE SHEFFIELD LTD,37241664,11712.96,S9 4EU
Department of Health,NHS Sheffield CCG,30/06/2021,C&M-GMS PCN DES Clin Pharmacist,PRC DELEGATED CO-COMMISSIONING,PRIMARY CARE SHEFFIELD LTD,37241664,14157.1,S9 4EU
Department of Health,NHS Sheffield CCG,30/06/2021,C&M-GMS PCN DES Physiotherapist,PRC DELEGATED CO-COMMISSIONING,PRIMARY CARE SHEFFIELD LTD,37241664,7825.75,S9 4EU
Department of Health,NHS Sheffield CCG,30/06/2021,C&M-GMS PCN DES Soc Prescribing,PRC DELEGATED CO-COMMISSIONING,PRIMARY CARE SHEFFIELD LTD,37241664,2717.68,S9 4EU
Department of Health,NHS Sheffield CCG,30/06/2021,C&M-GMS PCN DES Clin Pharmacist,PRC DELEGATED CO-COMMISSIONING,PRIMARY CARE SHEFFIELD LTD,37241679,23183.72,S9 4EU
Department of Health,NHS Sheffield CCG,30/06/2021,C&M-GMS PCN DES Soc Prescribing,PRC DELEGATED CO-COMMISSIONING,PRIMARY CARE SHEFFIELD LTD,37241679,5270.5,S9 4EU
Department of Health,NHS Sheffield CCG,30/06/2021,C&M-GMS C&M-APMS PCN DES Physician Assoc,PRC DELEGATED CO-COMMISSIONING,PRIMARY CARE SHEFFIELD LTD,37241693,8539.18,S9 4EU
Department of Health,NHS Sheffield CCG,30/06/2021,C&M-GMS PCN DES Clin Pharmacist,PRC DELEGATED CO-COMMISSIONING,PRIMARY CARE SHEFFIELD LTD,37241693,11069.03,S9 4EU
Department of Health,NHS Sheffield CCG,30/06/2021,C&M-GMS PCN DES Physiotherapist,PRC DELEGATED CO-COMMISSIONING,PRIMARY CARE SHEFFIELD LTD,37241693,5176.17,S9 4EU
Department of Health,NHS Sheffield CCG,30/06/2021,C&M-GMS PCN DES Soc Prescribing,PRC DELEGATED CO-COMMISSIONING,PRIMARY CARE SHEFFIELD LTD,37241693,2333.33,S9 4EU
Department of Health,NHS Sheffield CCG,30/06/2021,C&M-PCN DES PHARMACY TECHNICIANS,PRC DELEGATED CO-COMMISSIONING,PRIMARY CARE SHEFFIELD LTD,37241693,2407.6,S9 4EU
Department of Health,NHS Sheffield CCG,30/06/2021,C&M-PCN DES Trainee Nursing Associate,PRC DELEGATED CO-COMMISSIONING,PRIMARY CARE SHEFFIELD LTD,37241693,1890.5,S9 4EU
Department of Health,NHS Sheffield CCG,30/06/2021,C&M-OES Childrens Schemes,LOCAL ENHANCED SERVICES,PRIMARY EYECARE SERVICES LTD,37241475,1200,EC1R 0DG
Department of Health,NHS Sheffield CCG,30/06/2021,C&M-OES Glaucoma,LOCAL ENHANCED SERVICES,PRIMARY EYECARE SERVICES LTD,37241475,1430,EC1R 0DG
Department of Health,NHS Sheffield CCG,30/06/2021,C&M-OES Intra-ocular Ocular Hypertn,LOCAL ENHANCED SERVICES,PRIMARY EYECARE SERVICES LTD,37241475,180,EC1R 0DG
Department of Health,NHS Sheffield CCG,30/06/2021,C&M-OES PEARS,LOCAL ENHANCED SERVICES,PRIMARY EYECARE SERVICES LTD,37241475,25849.5,EC1R 0DG
Department of Health,NHS Sheffield CCG,30/06/2021,C&M-OES Childrens Schemes,LOCAL ENHANCED SERVICES,PRIMARY EYECARE SERVICES LTD,37241495,1400,EC1R 0DG
Department of Health,NHS Sheffield CCG,30/06/2021,C&M-OES Glaucoma,LOCAL ENHANCED SERVICES,PRIMARY EYECARE SERVICES LTD,37241495,1820,EC1R 0DG
Department of Health,NHS Sheffield CCG,30/06/2021,C&M-OES Intra-ocular Ocular Hypertn,LOCAL ENHANCED SERVICES,PRIMARY EYECARE SERVICES LTD,37241495,420,EC1R 0DG
Department of Health,NHS Sheffield CCG,30/06/2021,C&M-OES PEARS,LOCAL ENHANCED SERVICES,PRIMARY EYECARE SERVICES LTD,37241495,27945,EC1R 0DG
Department of Health,NHS Sheffield CCG,30/06/2021,C&M-GMS IT Comm Servs -GP Practices,PRIMARY CARE IT,REDCENTRIC SOLUTIONS LTD,37062131,89405.71,HG3 1UG
Department of Health,NHS Sheffield CCG,30/06/2021,C&M-PMS Contract Value,PRC DELEGATED CO-COMMISSIONING,RICHMOND MEDICAL CENTRE,37007526,74559.11,S13 8NA
Department of Health,NHS Sheffield CCG,30/06/2021,C&M-PMS DES Learn Dsblty Hlth Chk,PRC DELEGATED CO-COMMISSIONING,RICHMOND MEDICAL CENTRE,37007526,140,S13 8NA
Department of Health,NHS Sheffield CCG,30/06/2021,C&M-PMS PCN DES Participation,PRC DELEGATED CO-COMMISSIONING,RICHMOND MEDICAL CENTRE,37007526,1317.91,S13 8NA
Department of Health,NHS Sheffield CCG,30/06/2021,C&M-PMS PCO Locum Adop/Pat/Mat,PRC DELEGATED CO-COMMISSIONING,RICHMOND MEDICAL CENTRE,37007526,7006.08,S13 8NA
Department of Health,NHS Sheffield CCG,30/06/2021,C&M-PMS PCO Other,PRC DELEGATED CO-COMMISSIONING,RICHMOND MEDICAL CENTRE,37007526,576.4,S13 8NA
Department of Health,NHS Sheffield CCG,30/06/2021,C&M-PMS Prem Notional Rent,PRC DELEGATED CO-COMMISSIONING,RICHMOND MEDICAL CENTRE,37007526,23969.13,S13 8NA
Department of Health,NHS Sheffield CCG,30/06/2021,C&M-PMS Prem Rates,PRC DELEGATED CO-COMMISSIONING,RICHMOND MEDICAL CENTRE,37007526,1098,S13 8NA
Department of Health,NHS Sheffield CCG,30/06/2021,C&M-PMS QOF Aspiration,PRC DELEGATED CO-COMMISSIONING,RICHMOND MEDICAL CENTRE,37007526,8858.87,S13 8NA
Department of Health,NHS Sheffield CCG,30/06/2021,C&M-PMS QOF Achievement,PRC DELEGATED CO-COMMISSIONING,RICHMOND MEDICAL CENTRE,37158823,34848.85,S13 8NA
Department of Health,NHS Sheffield CCG,30/06/2021,Cont Care-Physical Disab (<65),CHC ADULT FULLY FUNDED,ROSEBERRY CARE CENTRES,37072466,31809.18,S35 2XF
Department of Health,NHS Sheffield CCG,30/06/2021,Cont Care-Physical Disab (<65),CHC ADULT FULLY FUNDED,ROSEBERRY CARE CENTRES,37072467,35873.8,S5 6AB
Department of Health,NHS Sheffield CCG,30/06/2021,Cont Care-Physical Disab (<65),CHC ADULT FULLY FUNDED,ROSEBERRY CARE CENTRES,37072476,36202.95,S4 7AJ
Department of Health,NHS Sheffield CCG,30/06/2021,Cont Care-Funded Nursing Care Allow,FUNDED NURSING CARE,ROSEBERRY CARE CENTRES,37072515,30700.52,S5 6AB
Department of Health,NHS Sheffield CCG,30/06/2021,Hcare Srv Rec Fdtn Trust-Contract Baseline,ACUTE COMMISSIONING,ROTHERHAM NHS FOUNDATION TRUST,37065711,622083.23,S60 2UD
Department of Health,NHS Sheffield CCG,30/06/2021,C&M-PMS Contract Value,PRC DELEGATED CO-COMMISSIONING,RUSTLINGS ROAD MEDICAL CENTRE,37007525,31482.93,S11 7AB
Department of Health,NHS Sheffield CCG,30/06/2021,C&M-PMS Funding Differential Review,PRC DELEGATED CO-COMMISSIONING,RUSTLINGS ROAD MEDICAL CENTRE,37007525,565.04,S11 7AB
Department of Health,NHS Sheffield CCG,30/06/2021,C&M-PMS PCN DES Participation,PRC DELEGATED CO-COMMISSIONING,RUSTLINGS ROAD MEDICAL CENTRE,37007525,544.7,S11 7AB
Department of Health,NHS Sheffield CCG,30/06/2021,C&M-PMS PCO Other,PRC DELEGATED CO-COMMISSIONING,RUSTLINGS ROAD MEDICAL CENTRE,37007525,317.8,S11 7AB
Department of Health,NHS Sheffield CCG,30/06/2021,C&M-PMS Prem Notional Rent,PRC DELEGATED CO-COMMISSIONING,RUSTLINGS ROAD MEDICAL CENTRE,37007525,1312.5,S11 7AB
Department of Health,NHS Sheffield CCG,30/06/2021,C&M-PMS Prem Water Rates,PRC DELEGATED CO-COMMISSIONING,RUSTLINGS ROAD MEDICAL CENTRE,37007525,42,S11 7AB
Department of Health,NHS Sheffield CCG,30/06/2021,C&M-PMS QOF Aspiration,PRC DELEGATED CO-COMMISSIONING,RUSTLINGS ROAD MEDICAL CENTRE,37007525,3139.32,S11 7AB
Department of Health,NHS Sheffield CCG,30/06/2021,Cont Care-Physical Disab (<65),CHC ADULT FULLY FUNDED,SCARSDALE GRANGE NURSING HOME,37072458,74401,S8 9EQ
Department of Health,NHS Sheffield CCG,30/06/2021,Cont Care-Physical Disab (<65),CHC ADULT FULLY FUNDED,SEVEN HILLS NURSING HOME,37072459,40576.74,S11 9AA
Department of Health,NHS Sheffield CCG,30/06/2021,C&M-GMS Global Sum,PRC DELEGATED CO-COMMISSIONING,SHARROW LANE MEDICAL CENTRE,37192881,26264.95,S11 8AN
Department of Health,NHS Sheffield CCG,30/06/2021,C&M-GMS PCN DES Participation,PRC DELEGATED CO-COMMISSIONING,SHARROW LANE MEDICAL CENTRE,37192881,500.68,S11 8AN
Department of Health,NHS Sheffield CCG,30/06/2021,C&M-GMS Prem Notional Rent,PRC DELEGATED CO-COMMISSIONING,SHARROW LANE MEDICAL CENTRE,37192881,2741.67,S11 8AN
Department of Health,NHS Sheffield CCG,30/06/2021,C&M-GMS QOF Achievement,PRC DELEGATED CO-COMMISSIONING,SHARROW LANE MEDICAL CENTRE,37192881,14568.39,S11 8AN
Department of Health,NHS Sheffield CCG,30/06/2021,C&M-GMS QOF Aspiration,PRC DELEGATED CO-COMMISSIONING,SHARROW LANE MEDICAL CENTRE,37192881,2983.54,S11 8AN
Department of Health,NHS Sheffield CCG,30/06/2021,Hcare Srv Rec Fdtn Trust-Contract Baseline,ACUTE CHILDRENS SERVICES,SHEFFIELD CHILDRENS NHS FOUNDATION TRUST,37065704,3731046.58,S10 2TH
Department of Health,NHS Sheffield CCG,30/06/2021,Hcare Srv Rec Fdtn Trust-Contract Baseline,ACUTE CHILDRENS SERVICES,SHEFFIELD CHILDRENS NHS FOUNDATION TRUST,37065707,2279500,S10 2TH
Department of Health,NHS Sheffield CCG,30/06/2021,Services From Local Authorities,MENTAL HEALTH SERVICES - COLLABORATIVE COMMISSIONING,SHEFFIELD CITY COUNCIL,37062090,62003.68,S1 2HH
Department of Health,NHS Sheffield CCG,30/06/2021,Cont Care-Physical Disab (65+),CHC ADULT FULLY FUNDED,SHEFFIELD CITY COUNCIL,37071511,919873.41,S1 1UJ
Department of Health,NHS Sheffield CCG,30/06/2021,Cont Care- Children,CHC CHILDREN,SHEFFIELD CITY COUNCIL,37071513,123492.58,S1 1UJ
Department of Health,NHS Sheffield CCG,30/06/2021,Clinical&Medical-Othe Public Sector,COMMUNITY SERVICES,SHEFFIELD CITY COUNCIL,37170759,150416.7,S1 1UJ
Department of Health,NHS Sheffield CCG,30/06/2021,Clinical&Medical-Othe Public Sector,MENTAL HEALTH SERVICES - COLLABORATIVE COMMISSIONING,SHEFFIELD CITY COUNCIL,37170759,83669.08,S1 1UJ
Department of Health,NHS Sheffield CCG,30/06/2021,Clinical&Medical-Othe Public Sector,REABLEMENT,SHEFFIELD CITY COUNCIL,37170759,21808.67,S1 1UJ
Department of Health,NHS Sheffield CCG,30/06/2021,Clinical&Medical-Othe Public Sector,SAFEGUARDING,SHEFFIELD CITY COUNCIL,37170759,16596.33,S1 1UJ
Department of Health,NHS Sheffield CCG,30/06/2021,Cont Care-Physical Disab (65+),CHC ADULT FULLY FUNDED,SHEFFIELD CITY COUNCIL,37170759,62941.09,S1 1UJ
Department of Health,NHS Sheffield CCG,30/06/2021,Soc Care-Joint H&C Teams/Working,INTERMEDIATE CARE,SHEFFIELD CITY COUNCIL,37170759,151447.58,S1 1UJ
Department of Health,NHS Sheffield CCG,30/06/2021,Soc Care-Other Soc Care,COMMISSIONING - NON ACUTE,SHEFFIELD CITY COUNCIL,37170759,1636083.35,S1 1UJ
Department of Health,NHS Sheffield CCG,30/06/2021,Soc Care-Support Prim Care,COMMUNITY SERVICES,SHEFFIELD CITY COUNCIL,37170759,64166.67,S1 1UJ
Department of Health,NHS Sheffield CCG,30/06/2021,Hcare Srv Rec Fdtn Trust-Contract Baseline,MENTAL HEALTH CONTRACTS,SHEFFIELD HEALTH & SOCIAL CARE NHS FOUNDATION TRUST,37065708,8171496.52,S10 3TH
Department of Health,NHS Sheffield CCG,30/06/2021,Hcare Srv Rec Fdtn Trust-Contract Baseline,MENTAL HEALTH CONTRACTS,SHEFFIELD HEALTH & SOCIAL CARE NHS FOUNDATION TRUST,37065709,908500,S10 3TH
Department of Health,NHS Sheffield CCG,30/06/2021,Hcare Srv Rec Fdtn Trust-Contract Baseline,ACUTE COMMISSIONING,SHEFFIELD TEACHING HOSPITALS NHS FOUNDATION TRUST,37065710,44904568.85,S5 7AU
Department of Health,NHS Sheffield CCG,30/06/2021,C&M-GMS DES Learn Dsblty Hlth Chk,PRC DELEGATED CO-COMMISSIONING,SHIREGREEN MEDICAL CENTRE,37192901,140,S5 0RG
Department of Health,NHS Sheffield CCG,30/06/2021,C&M-GMS Global Sum,PRC DELEGATED CO-COMMISSIONING,SHIREGREEN MEDICAL CENTRE,37192901,60303.87,S5 0RG
Department of Health,NHS Sheffield CCG,30/06/2021,C&M-GMS PCN DES Participation,PRC DELEGATED CO-COMMISSIONING,SHIREGREEN MEDICAL CENTRE,37192901,1161.13,S5 0RG
Department of Health,NHS Sheffield CCG,30/06/2021,C&M-GMS Prem Cost Rent,PRC DELEGATED CO-COMMISSIONING,SHIREGREEN MEDICAL CENTRE,37192901,1792.33,S5 0RG
Department of Health,NHS Sheffield CCG,30/06/2021,C&M-GMS Prem Notional Rent,PRC DELEGATED CO-COMMISSIONING,SHIREGREEN MEDICAL CENTRE,37192901,5375,S5 0RG
Department of Health,NHS Sheffield CCG,30/06/2021,C&M-GMS QOF Achievement,PRC DELEGATED CO-COMMISSIONING,SHIREGREEN MEDICAL CENTRE,37192901,30758.73,S5 0RG
Department of Health,NHS Sheffield CCG,30/06/2021,C&M-GMS QOF Aspiration,PRC DELEGATED CO-COMMISSIONING,SHIREGREEN MEDICAL CENTRE,37192901,7267.46,S5 0RG
Department of Health,NHS Sheffield CCG,30/06/2021,C&M-PMS Contract Value,PRC DELEGATED CO-COMMISSIONING,SLOAN MEDICAL CENTRE,37007536,102117.85,S8 0YH
Department of Health,NHS Sheffield CCG,30/06/2021,C&M-PMS Out of Hours Opt Outs,PRC DELEGATED CO-COMMISSIONING,SLOAN MEDICAL CENTRE,37007536,16.76,S8 0YH
Department of Health,NHS Sheffield CCG,30/06/2021,C&M-PMS PCN DES Participation,PRC DELEGATED CO-COMMISSIONING,SLOAN MEDICAL CENTRE,37007536,1849.06,S8 0YH
Department of Health,NHS Sheffield CCG,30/06/2021,C&M-PMS PCO Locum Adop/Pat/Mat,PRC DELEGATED CO-COMMISSIONING,SLOAN MEDICAL CENTRE,37007536,3503.04,S8 0YH
Department of Health,NHS Sheffield CCG,30/06/2021,C&M-PMS PCO Locum Sickness,PRC DELEGATED CO-COMMISSIONING,SLOAN MEDICAL CENTRE,37007536,6130.32,S8 0YH
Department of Health,NHS Sheffield CCG,30/06/2021,C&M-PMS PCO Other,PRC DELEGATED CO-COMMISSIONING,SLOAN MEDICAL CENTRE,37007536,819.8,S8 0YH
Department of Health,NHS Sheffield CCG,30/06/2021,C&M-PMS Prem Notional Rent,PRC DELEGATED CO-COMMISSIONING,SLOAN MEDICAL CENTRE,37007536,747.5,S8 0YH
Department of Health,NHS Sheffield CCG,30/06/2021,C&M-PMS Prem Water Rates,PRC DELEGATED CO-COMMISSIONING,SLOAN MEDICAL CENTRE,37007536,393,S8 0YH
Department of Health,NHS Sheffield CCG,30/06/2021,C&M-PMS QOF Aspiration,PRC DELEGATED CO-COMMISSIONING,SLOAN MEDICAL CENTRE,37007536,11094.95,S8 0YH
Department of Health,NHS Sheffield CCG,30/06/2021,C&M-PMS QOF Achievement,PRC DELEGATED CO-COMMISSIONING,SLOAN MEDICAL CENTRE,37158834,44557.14,S8 0YH
Department of Health,NHS Sheffield CCG,30/06/2021,C&M-PMS Contract Value,PRC DELEGATED CO-COMMISSIONING,SOTHALL MEDICAL CENTRE,37007537,75689.4,S20 1HQ
Department of Health,NHS Sheffield CCG,30/06/2021,C&M-PMS Out of Hours Opt Outs,PRC DELEGATED CO-COMMISSIONING,SOTHALL MEDICAL CENTRE,37007537,37.92,S20 1HQ
Department of Health,NHS Sheffield CCG,30/06/2021,C&M-PMS PCN DES Participation,PRC DELEGATED CO-COMMISSIONING,SOTHALL MEDICAL CENTRE,37007537,1370.05,S20 1HQ
Department of Health,NHS Sheffield CCG,30/06/2021,C&M-PMS PCO Other,PRC DELEGATED CO-COMMISSIONING,SOTHALL MEDICAL CENTRE,37007537,626.1,S20 1HQ
Department of Health,NHS Sheffield CCG,30/06/2021,C&M-PMS Prem Notional Rent,PRC DELEGATED CO-COMMISSIONING,SOTHALL MEDICAL CENTRE,37007537,5116.67,S20 1HQ
Department of Health,NHS Sheffield CCG,30/06/2021,C&M-PMS Prem Rates,PRC DELEGATED CO-COMMISSIONING,SOTHALL MEDICAL CENTRE,37007537,617,S20 1HQ
Department of Health,NHS Sheffield CCG,30/06/2021,C&M-PMS QOF Aspiration,PRC DELEGATED CO-COMMISSIONING,SOTHALL MEDICAL CENTRE,37007537,9478.91,S20 1HQ
Department of Health,NHS Sheffield CCG,30/06/2021,C&M-PMS QOF Achievement,PRC DELEGATED CO-COMMISSIONING,SOTHALL MEDICAL CENTRE,37158835,38632.73,S20 1HQ
Department of Health,NHS Sheffield CCG,30/06/2021,Clinical&Medical-Voluntary Sector,COLLABORATIVE COMMISSIONING,SOUTH YORKSHIRE HOUSING ASSOCIATION LTD,36926810,90000,S1 4EB
Department of Health,NHS Sheffield CCG,30/06/2021,Clinical&Medical-Voluntary Sector,COLLABORATIVE COMMISSIONING,SOUTH YORKSHIRE HOUSING ASSOCIATION LTD,36926823,90000,S1 4EB
Department of Health,NHS Sheffield CCG,30/06/2021,Cont Care- Adult 100% Fully Funded,CHC ADULT FULLY FUNDED,SOUTH YORKSHIRE HOUSING ASSOCIATION LTD,37071484,25500,S1 4HF
Department of Health,NHS Sheffield CCG,30/06/2021,Cont Care- Adult 100% Fully Funded,CHC ADULT FULLY FUNDED,SOUTH YORKSHIRE HOUSING ASSOCIATION LTD,37071486,46763.59,S1 4HF
Department of Health,NHS Sheffield CCG,30/06/2021,Clinical&Medical-Independent Sector,MENTAL HEALTH CONTRACTS,SOUTH YORKSHIRE HOUSING ASSOCIATION LTD,37071490,34434.83,S1 4HF
Department of Health,NHS Sheffield CCG,30/06/2021,Cont Care-Physical Disab (<65),CHC ADULT FULLY FUNDED,SOUTH YORKSHIRE HOUSING ASSOCIATION LTD,37072445,65197.74,S35 1RQ
Department of Health,NHS Sheffield CCG,30/06/2021,C&M-PMS Contract Value,PRC DELEGATED CO-COMMISSIONING,SOUTHEY GREEN MEDICAL CENTRE,37007538,26049.77,S5 7QB
Department of Health,NHS Sheffield CCG,30/06/2021,C&M-PMS Funding Differential Review,PRC DELEGATED CO-COMMISSIONING,SOUTHEY GREEN MEDICAL CENTRE,37007538,612.28,S5 7QB
Department of Health,NHS Sheffield CCG,30/06/2021,C&M-PMS Out of Hours Opt Outs,PRC DELEGATED CO-COMMISSIONING,SOUTHEY GREEN MEDICAL CENTRE,37007538,76.03,S5 7QB
Department of Health,NHS Sheffield CCG,30/06/2021,C&M-PMS PCN DES Participation,PRC DELEGATED CO-COMMISSIONING,SOUTHEY GREEN MEDICAL CENTRE,37007538,470.48,S5 7QB
Department of Health,NHS Sheffield CCG,30/06/2021,C&M-PMS Prem Notional Rent,PRC DELEGATED CO-COMMISSIONING,SOUTHEY GREEN MEDICAL CENTRE,37007538,3362.5,S5 7QB
Department of Health,NHS Sheffield CCG,30/06/2021,C&M-PMS QOF Aspiration,PRC DELEGATED CO-COMMISSIONING,SOUTHEY GREEN MEDICAL CENTRE,37007538,2952.99,S5 7QB
Department of Health,NHS Sheffield CCG,30/06/2021,Clinical&Medical-Independent Sector,ACUTE COMMISSIONING,SPAMEDICA LTD,37170796,45122.39,BL1 1HU
Department of Health,NHS Sheffield CCG,30/06/2021,CLINICAL AND MEDICAL GOODS & SERVICES - HOSPITAL DISCHARGE PROGRAMME,HOSPICES,ST LUKES HOSPICE,37122642,38000,S11 9NE
Department of Health,NHS Sheffield CCG,30/06/2021,CLINICAL AND MEDICAL GOODS & SERVICES - HOSPITAL DISCHARGE PROGRAMME,HOSPICES,ST LUKES HOSPICE,37170814,146172,S11 9NE
Department of Health,NHS Sheffield CCG,30/06/2021,C&M-GMS Global Sum,PRC DELEGATED CO-COMMISSIONING,STANNINGTON MEDICAL CENTRE,37192905,27338.07,S6 6BX
Department of Health,NHS Sheffield CCG,30/06/2021,C&M-GMS Prem Notional Rent,PRC DELEGATED CO-COMMISSIONING,STANNINGTON MEDICAL CENTRE,37192905,2575,S6 6BX
Department of Health,NHS Sheffield CCG,30/06/2021,C&M-GMS QOF Achievement,PRC DELEGATED CO-COMMISSIONING,STANNINGTON MEDICAL CENTRE,37192905,10944.82,S6 6BX
Department of Health,NHS Sheffield CCG,30/06/2021,C&M-GMS QOF Aspiration,PRC DELEGATED CO-COMMISSIONING,STANNINGTON MEDICAL CENTRE,37192905,3194.14,S6 6BX
Department of Health,NHS Sheffield CCG,30/06/2021,C&M-GMS Global Sum,PRC DELEGATED CO-COMMISSIONING,STONECROFT MEDICAL CENTRE,37192894,35459.82,S12 2LJ
Department of Health,NHS Sheffield CCG,30/06/2021,C&M-GMS PCN DES Participation,PRC DELEGATED CO-COMMISSIONING,STONECROFT MEDICAL CENTRE,37192894,680.92,S12 2LJ
Department of Health,NHS Sheffield CCG,30/06/2021,C&M-GMS Prem Notional Rent,PRC DELEGATED CO-COMMISSIONING,STONECROFT MEDICAL CENTRE,37192894,2808.33,S12 2LJ
Department of Health,NHS Sheffield CCG,30/06/2021,C&M-GMS QOF Achievement,PRC DELEGATED CO-COMMISSIONING,STONECROFT MEDICAL CENTRE,37192894,15106.55,S12 2LJ
Department of Health,NHS Sheffield CCG,30/06/2021,C&M-GMS QOF Aspiration,PRC DELEGATED CO-COMMISSIONING,STONECROFT MEDICAL CENTRE,37192894,4286.72,S12 2LJ
Department of Health,NHS Sheffield CCG,30/06/2021,Clinical&Medical-Independent Sector,MENTAL HEALTH CONTRACTS,SUSASH GB LTD T/A EAGLE HOUSE,37071488,30091.75,S11 8NP
Department of Health,NHS Sheffield CCG,30/06/2021,Cont Care-Physical Disab (<65),CHC ADULT FULLY FUNDED,SUSASH GB LTD T/A EAGLE HOUSE,37072478,25578.57,S11 8NP
Department of Health,NHS Sheffield CCG,30/06/2021,C&M-GMS DES Learn Dsblty Hlth Chk,PRC DELEGATED CO-COMMISSIONING,TRAMWAYS MEDICAL CENTRE,37192928,420,S6 4JQ
Department of Health,NHS Sheffield CCG,30/06/2021,C&M-GMS Global Sum,PRC DELEGATED CO-COMMISSIONING,TRAMWAYS MEDICAL CENTRE,37192928,65868.89,S6 4JQ
Department of Health,NHS Sheffield CCG,30/06/2021,C&M-GMS PCN DES Participation,PRC DELEGATED CO-COMMISSIONING,TRAMWAYS MEDICAL CENTRE,37192928,1255.37,S6 4JQ
Department of Health,NHS Sheffield CCG,30/06/2021,C&M-GMS Prem Cost Rent,PRC DELEGATED CO-COMMISSIONING,TRAMWAYS MEDICAL CENTRE,37192928,4012.75,S6 4JQ
Department of Health,NHS Sheffield CCG,30/06/2021,C&M-GMS QOF Achievement,PRC DELEGATED CO-COMMISSIONING,TRAMWAYS MEDICAL CENTRE,37192928,29469.47,S6 4JQ
Department of Health,NHS Sheffield CCG,30/06/2021,C&M-GMS QOF Aspiration,PRC DELEGATED CO-COMMISSIONING,TRAMWAYS MEDICAL CENTRE,37192928,6868.53,S6 4JQ
Department of Health,NHS Sheffield CCG,30/06/2021,C&M-PCN DES Trainee Nursing Associate,PRC DELEGATED CO-COMMISSIONING,UNIVERSITY HEALTH SERVICE,37007546,1836.94,S3 7QP
Department of Health,NHS Sheffield CCG,30/06/2021,C&M-PMS Contract Value,PRC DELEGATED CO-COMMISSIONING,UNIVERSITY HEALTH SERVICE,37007546,202981.57,S3 7QP
Department of Health,NHS Sheffield CCG,30/06/2021,C&M-PMS DES Extended Hours Access,PRC DELEGATED CO-COMMISSIONING,UNIVERSITY HEALTH SERVICE,37007546,4876.32,S3 7QP
Department of Health,NHS Sheffield CCG,30/06/2021,C&M-PMS Out of Hours Opt Outs,PRC DELEGATED CO-COMMISSIONING,UNIVERSITY HEALTH SERVICE,37007546,2011.96,S3 7QP
Department of Health,NHS Sheffield CCG,30/06/2021,C&M-PMS PCN DES Clin Pharmacist,PRC DELEGATED CO-COMMISSIONING,UNIVERSITY HEALTH SERVICE,37007546,9347.32,S3 7QP
Department of Health,NHS Sheffield CCG,30/06/2021,C&M-PMS PCN DES Clinical Director,PRC DELEGATED CO-COMMISSIONING,UNIVERSITY HEALTH SERVICE,37007546,2492.34,S3 7QP
Department of Health,NHS Sheffield CCG,30/06/2021,C&M-PMS PCN DES PCN support,LOCAL ENHANCED SERVICES,UNIVERSITY HEALTH SERVICE,37007546,5079.5,S3 7QP
Department of Health,NHS Sheffield CCG,30/06/2021,C&M-PMS PCN DES Participation,PRC DELEGATED CO-COMMISSIONING,UNIVERSITY HEALTH SERVICE,37007546,3676.64,S3 7QP
Department of Health,NHS Sheffield CCG,30/06/2021,C&M-PMS PCN DES Physiotherapist,PRC DELEGATED CO-COMMISSIONING,UNIVERSITY HEALTH SERVICE,37007546,3053.47,S3 7QP
Department of Health,NHS Sheffield CCG,30/06/2021,C&M-PMS PCN DES Soc Prescribing,PRC DELEGATED CO-COMMISSIONING,UNIVERSITY HEALTH SERVICE,37007546,2814.04,S3 7QP
Department of Health,NHS Sheffield CCG,30/06/2021,C&M-PMS PCO Locum Sickness,PRC DELEGATED CO-COMMISSIONING,UNIVERSITY HEALTH SERVICE,37007546,7881.84,S3 7QP
Department of Health,NHS Sheffield CCG,30/06/2021,C&M-PMS PCO Other,PRC DELEGATED CO-COMMISSIONING,UNIVERSITY HEALTH SERVICE,37007546,23681,S3 7QP
Department of Health,NHS Sheffield CCG,30/06/2021,C&M-PMS Prem Notional Rent,PRC DELEGATED CO-COMMISSIONING,UNIVERSITY HEALTH SERVICE,37007546,15833.33,S3 7QP
Department of Health,NHS Sheffield CCG,30/06/2021,C&M-PMS QOF Aspiration,PRC DELEGATED CO-COMMISSIONING,UNIVERSITY HEALTH SERVICE,37007546,8048.38,S3 7QP
Department of Health,NHS Sheffield CCG,30/06/2021,C&M-PMS Contract Value,PRC DELEGATED CO-COMMISSIONING,UNIVERSITY HEALTH SERVICE,37007547,-44700.84,S3 7QP
Department of Health,NHS Sheffield CCG,30/06/2021,C&M-PMS GP Statutory Levy,PRC DELEGATED CO-COMMISSIONING,UNIVERSITY HEALTH SERVICE,37007547,-1335.18,S3 7QP
Department of Health,NHS Sheffield CCG,30/06/2021,C&M-PMS Out of Hours Opt Outs,PRC DELEGATED CO-COMMISSIONING,UNIVERSITY HEALTH SERVICE,37007547,-9566.75,S3 7QP
Department of Health,NHS Sheffield CCG,30/06/2021,C&M-PMS QOF Aspiration,PRC DELEGATED CO-COMMISSIONING,UNIVERSITY HEALTH SERVICE,37007547,-37.89,S3 7QP
Department of Health,NHS Sheffield CCG,30/06/2021,C&M-PMS QOF Achievement,PRC DELEGATED CO-COMMISSIONING,UNIVERSITY HEALTH SERVICE,37158845,28921.71,S3 7QP
Department of Health,NHS Sheffield CCG,30/06/2021,C&M-GMS DES Learn Dsblty Hlth Chk,PRC DELEGATED CO-COMMISSIONING,UPPERTHORPE MEDICAL CENTRE,37192935,140,S6 3FT
Department of Health,NHS Sheffield CCG,30/06/2021,C&M-GMS Global Sum,PRC DELEGATED CO-COMMISSIONING,UPPERTHORPE MEDICAL CENTRE,37192935,93186.84,S6 3FT
Department of Health,NHS Sheffield CCG,30/06/2021,C&M-GMS PCN DES Participation,PRC DELEGATED CO-COMMISSIONING,UPPERTHORPE MEDICAL CENTRE,37192935,1770.85,S6 3FT
Department of Health,NHS Sheffield CCG,30/06/2021,C&M-GMS Prem Actual Rent,PRC DELEGATED CO-COMMISSIONING,UPPERTHORPE MEDICAL CENTRE,37192935,419.5,S6 3FT
Department of Health,NHS Sheffield CCG,30/06/2021,C&M-GMS Prem Notional Rent,PRC DELEGATED CO-COMMISSIONING,UPPERTHORPE MEDICAL CENTRE,37192935,2128.33,S6 3FT
Department of Health,NHS Sheffield CCG,30/06/2021,C&M-GMS QOF Achievement,PRC DELEGATED CO-COMMISSIONING,UPPERTHORPE MEDICAL CENTRE,37192935,47466.43,S6 3FT
Department of Health,NHS Sheffield CCG,30/06/2021,C&M-GMS QOF Aspiration,PRC DELEGATED CO-COMMISSIONING,UPPERTHORPE MEDICAL CENTRE,37192935,10749.32,S6 3FT
Department of Health,NHS Sheffield CCG,30/06/2021,C&M-PMS Contract Value,PRC DELEGATED CO-COMMISSIONING,UPWELL STREET SURGERY,37007548,37750.76,S4 8AN
Department of Health,NHS Sheffield CCG,30/06/2021,C&M-PMS Funding Differential Review,PRC DELEGATED CO-COMMISSIONING,UPWELL STREET SURGERY,37007548,911.19,S4 8AN
Department of Health,NHS Sheffield CCG,30/06/2021,C&M-PMS PCN DES Participation,PRC DELEGATED CO-COMMISSIONING,UPWELL STREET SURGERY,37007548,680.46,S4 8AN
Department of Health,NHS Sheffield CCG,30/06/2021,C&M-PMS PCO Locum Sickness,PRC DELEGATED CO-COMMISSIONING,UPWELL STREET SURGERY,37007548,1290,S4 8AN
Department of Health,NHS Sheffield CCG,30/06/2021,C&M-PMS PCO Other,PRC DELEGATED CO-COMMISSIONING,UPWELL STREET SURGERY,37007548,315.4,S4 8AN
Department of Health,NHS Sheffield CCG,30/06/2021,C&M-PMS Prem Notional Rent,PRC DELEGATED CO-COMMISSIONING,UPWELL STREET SURGERY,37007548,8137.5,S4 8AN
Department of Health,NHS Sheffield CCG,30/06/2021,C&M-PMS Prem Rates,PRC DELEGATED CO-COMMISSIONING,UPWELL STREET SURGERY,37007548,998,S4 8AN
Department of Health,NHS Sheffield CCG,30/06/2021,C&M-PMS Prem Water Rates,PRC DELEGATED CO-COMMISSIONING,UPWELL STREET SURGERY,37007548,154.33,S4 8AN
Department of Health,NHS Sheffield CCG,30/06/2021,C&M-PMS QOF Aspiration,PRC DELEGATED CO-COMMISSIONING,UPWELL STREET SURGERY,37007548,4098.59,S4 8AN
Department of Health,NHS Sheffield CCG,30/06/2021,C&M-GP PRACTICE REVENUE - PCTF,LOCAL ENHANCED SERVICES,VALLEY MEDICAL CENTRE,37014014,21360,S36 1BX
Department of Health,NHS Sheffield CCG,30/06/2021,C&M-PCN DES PHARMACY TECHNICIANS,PRC DELEGATED CO-COMMISSIONING,VALLEY MEDICAL CENTRE,37014014,6019,S36 1BX
Department of Health,NHS Sheffield CCG,30/06/2021,C&M-PMS Contract Value,PRC DELEGATED CO-COMMISSIONING,VALLEY MEDICAL CENTRE,37014014,84271.12,S36 1BX
Department of Health,NHS Sheffield CCG,30/06/2021,C&M-PMS DES Extended Hours Access,PRC DELEGATED CO-COMMISSIONING,VALLEY MEDICAL CENTRE,37014014,2477.4,S36 1BX
Department of Health,NHS Sheffield CCG,30/06/2021,C&M-PMS Out of Hours Opt Outs,PRC DELEGATED CO-COMMISSIONING,VALLEY MEDICAL CENTRE,37014014,25.53,S36 1BX
Department of Health,NHS Sheffield CCG,30/06/2021,C&M-PMS PCN DES Clin Pharmacist,PRC DELEGATED CO-COMMISSIONING,VALLEY MEDICAL CENTRE,37014014,8101.02,S36 1BX
Department of Health,NHS Sheffield CCG,30/06/2021,C&M-PMS PCN DES Clinical Director,PRC DELEGATED CO-COMMISSIONING,VALLEY MEDICAL CENTRE,37014014,1266.23,S36 1BX
Department of Health,NHS Sheffield CCG,30/06/2021,C&M-PMS PCN DES PCN support,LOCAL ENHANCED SERVICES,VALLEY MEDICAL CENTRE,37014014,2580.63,S36 1BX
Department of Health,NHS Sheffield CCG,30/06/2021,C&M-PMS PCN DES Participation,PRC DELEGATED CO-COMMISSIONING,VALLEY MEDICAL CENTRE,37014014,1524.87,S36 1BX
Department of Health,NHS Sheffield CCG,30/06/2021,C&M-PMS PCN DES Physiotherapist,PRC DELEGATED CO-COMMISSIONING,VALLEY MEDICAL CENTRE,37014014,4147.22,S36 1BX
Department of Health,NHS Sheffield CCG,30/06/2021,C&M-PMS PCN DES Soc Prescribing,PRC DELEGATED CO-COMMISSIONING,VALLEY MEDICAL CENTRE,37014014,5614.85,S36 1BX
Department of Health,NHS Sheffield CCG,30/06/2021,C&M-PMS PCO Other,PRC DELEGATED CO-COMMISSIONING,VALLEY MEDICAL CENTRE,37014014,5986,S36 1BX
Department of Health,NHS Sheffield CCG,30/06/2021,C&M-PMS Prem Actual Rent,PRC DELEGATED CO-COMMISSIONING,VALLEY MEDICAL CENTRE,37014014,25468.75,S36 1BX
Department of Health,NHS Sheffield CCG,30/06/2021,C&M-PMS Prem Rates,PRC DELEGATED CO-COMMISSIONING,VALLEY MEDICAL CENTRE,37014014,657,S36 1BX
Department of Health,NHS Sheffield CCG,30/06/2021,C&M-PMS QOF Aspiration,PRC DELEGATED CO-COMMISSIONING,VALLEY MEDICAL CENTRE,37014014,9844.79,S36 1BX
Department of Health,NHS Sheffield CCG,30/06/2021,C&M-PMS QOF Achievement,PRC DELEGATED CO-COMMISSIONING,VALLEY MEDICAL CENTRE,37158847,37200.83,S36 1BX
Department of Health,NHS Sheffield CCG,30/06/2021,Cont Care-Physical Disab (<65),CHC ADULT FULLY FUNDED,VALORUM CARE LTD,37072480,38783.14,LS19 7RW
Department of Health,NHS Sheffield CCG,30/06/2021,C&M-GMS DES Learn Dsblty Hlth Chk,PRC DELEGATED CO-COMMISSIONING,WALKLEY HOUSE MEDICAL CENTRE,37192941,140,S6 3TN
Department of Health,NHS Sheffield CCG,30/06/2021,C&M-GMS Global Sum,PRC DELEGATED CO-COMMISSIONING,WALKLEY HOUSE MEDICAL CENTRE,37192941,93663.02,S6 3TN
Department of Health,NHS Sheffield CCG,30/06/2021,C&M-GMS PCN DES Participation,PRC DELEGATED CO-COMMISSIONING,WALKLEY HOUSE MEDICAL CENTRE,37192941,1785.69,S6 3TN
Department of Health,NHS Sheffield CCG,30/06/2021,C&M-GMS Prem Notional Rent,PRC DELEGATED CO-COMMISSIONING,WALKLEY HOUSE MEDICAL CENTRE,37192941,5635.5,S6 3TN
Department of Health,NHS Sheffield CCG,30/06/2021,C&M-GMS QOF Achievement,PRC DELEGATED CO-COMMISSIONING,WALKLEY HOUSE MEDICAL CENTRE,37192941,42703.59,S6 3TN
Department of Health,NHS Sheffield CCG,30/06/2021,C&M-GMS QOF Aspiration,PRC DELEGATED CO-COMMISSIONING,WALKLEY HOUSE MEDICAL CENTRE,37192941,9792.91,S6 3TN
Department of Health,NHS Sheffield CCG,30/06/2021,C&M-GMS Global Sum,PRC DELEGATED CO-COMMISSIONING,WHITE HOUSE SURGERY SHEFFIELD,37192845,57705.32,S2 1SL
Department of Health,NHS Sheffield CCG,30/06/2021,C&M-GMS PCN DES Participation,PRC DELEGATED CO-COMMISSIONING,WHITE HOUSE SURGERY SHEFFIELD,37192845,1090.83,S2 1SL
Department of Health,NHS Sheffield CCG,30/06/2021,C&M-GMS Prem Notional Rent,PRC DELEGATED CO-COMMISSIONING,WHITE HOUSE SURGERY SHEFFIELD,37192845,9412.5,S2 1SL
Department of Health,NHS Sheffield CCG,30/06/2021,C&M-GMS Prem Rates,PRC DELEGATED CO-COMMISSIONING,WHITE HOUSE SURGERY SHEFFIELD,37192845,1632,S2 1SL
Department of Health,NHS Sheffield CCG,30/06/2021,C&M-GMS QOF Achievement,PRC DELEGATED CO-COMMISSIONING,WHITE HOUSE SURGERY SHEFFIELD,37192845,27648.84,S2 1SL
Department of Health,NHS Sheffield CCG,30/06/2021,C&M-GMS QOF Aspiration,PRC DELEGATED CO-COMMISSIONING,WHITE HOUSE SURGERY SHEFFIELD,37192845,6765.85,S2 1SL
Department of Health,NHS Sheffield CCG,30/06/2021,Cont Care-Physical Disab (<65),CHC ADULT FULLY FUNDED,WILLOWBECK HEALTH CARE LTD,37072463,178401.13,S4 8AR
Department of Health,NHS Sheffield CCG,30/06/2021,C&M-PMS Contract Value,PRC DELEGATED CO-COMMISSIONING,WINCOBANK MEDICAL CENTRE,37007516,65910.29,S9 1DJ
Department of Health,NHS Sheffield CCG,30/06/2021,C&M-PMS Out of Hours Opt Outs,PRC DELEGATED CO-COMMISSIONING,WINCOBANK MEDICAL CENTRE,37007516,43.94,S9 1DJ
Department of Health,NHS Sheffield CCG,30/06/2021,C&M-PMS PCN DES Participation,PRC DELEGATED CO-COMMISSIONING,WINCOBANK MEDICAL CENTRE,37007516,1191.11,S9 1DJ
Department of Health,NHS Sheffield CCG,30/06/2021,C&M-PMS Prem Healthcentre Rent,PRC DELEGATED CO-COMMISSIONING,WINCOBANK MEDICAL CENTRE,37007516,49106.47,S9 1DJ
Department of Health,NHS Sheffield CCG,30/06/2021,C&M-PMS QOF Aspiration,PRC DELEGATED CO-COMMISSIONING,WINCOBANK MEDICAL CENTRE,37007516,6971.47,S9 1DJ
Department of Health,NHS Sheffield CCG,30/06/2021,C&M-PMS QOF Achievement,PRC DELEGATED CO-COMMISSIONING,WINCOBANK MEDICAL CENTRE,37158803,29640.25,S9 1DJ
Department of Health,NHS Sheffield CCG,30/06/2021,C&M-PMS Contract Value,PRC DELEGATED CO-COMMISSIONING,WOODHOUSE HEALTH CENTRE,37007518,103951.25,S13 7LY
Department of Health,NHS Sheffield CCG,30/06/2021,C&M-PMS Funding Differential Review,PRC DELEGATED CO-COMMISSIONING,WOODHOUSE HEALTH CENTRE,37007518,2095.91,S13 7LY
Department of Health,NHS Sheffield CCG,30/06/2021,C&M-PMS Out of Hours Opt Outs,PRC DELEGATED CO-COMMISSIONING,WOODHOUSE HEALTH CENTRE,37007518,79.22,S13 7LY
Department of Health,NHS Sheffield CCG,30/06/2021,C&M-PMS PCN DES Participation,PRC DELEGATED CO-COMMISSIONING,WOODHOUSE HEALTH CENTRE,37007518,1880.78,S13 7LY
Department of Health,NHS Sheffield CCG,30/06/2021,C&M-PMS PCO Other,PRC DELEGATED CO-COMMISSIONING,WOODHOUSE HEALTH CENTRE,37007518,743.9,S13 7LY
Department of Health,NHS Sheffield CCG,30/06/2021,C&M-PMS Prem Notional Rent,PRC DELEGATED CO-COMMISSIONING,WOODHOUSE HEALTH CENTRE,37007518,6338.58,S13 7LY
Department of Health,NHS Sheffield CCG,30/06/2021,C&M-PMS Prem Rates,PRC DELEGATED CO-COMMISSIONING,WOODHOUSE HEALTH CENTRE,37007518,1459,S13 7LY
Department of Health,NHS Sheffield CCG,30/06/2021,C&M-PMS QOF Aspiration,PRC DELEGATED CO-COMMISSIONING,WOODHOUSE HEALTH CENTRE,37007518,15023.58,S13 7LY
Department of Health,NHS Sheffield CCG,30/06/2021,C&M-PMS Contract Value,PRC DELEGATED CO-COMMISSIONING,WOODHOUSE HEALTH CENTRE,37013953,-2252.12,S13 7LY
Department of Health,NHS Sheffield CCG,30/06/2021,C&M-PMS GP Statutory Levy,PRC DELEGATED CO-COMMISSIONING,WOODHOUSE HEALTH CENTRE,37013953,-423.92,S13 7LY
Department of Health,NHS Sheffield CCG,30/06/2021,C&M-PMS Out of Hours Opt Outs,PRC DELEGATED CO-COMMISSIONING,WOODHOUSE HEALTH CENTRE,37013953,-4893.82,S13 7LY
Department of Health,NHS Sheffield CCG,30/06/2021,C&M-PMS QOF Aspiration,PRC DELEGATED CO-COMMISSIONING,WOODHOUSE HEALTH CENTRE,37013953,-1340.69,S13 7LY
Department of Health,NHS Sheffield CCG,30/06/2021,C&M-PMS QOF Achievement,PRC DELEGATED CO-COMMISSIONING,WOODHOUSE HEALTH CENTRE,37158806,57402.92,S13 7LY
Department of Health,NHS Sheffield CCG,30/06/2021,C&M-PMS Contract Value,PRC DELEGATED CO-COMMISSIONING,WOODSEATS MEDICAL CENTRE,37010450,88181.32,S8 0SH
Department of Health,NHS Sheffield CCG,30/06/2021,C&M-PMS PCN DES Participation,PRC DELEGATED CO-COMMISSIONING,WOODSEATS MEDICAL CENTRE,37010450,1531.95,S8 0SH
Department of Health,NHS Sheffield CCG,30/06/2021,C&M-PMS PCO Other,PRC DELEGATED CO-COMMISSIONING,WOODSEATS MEDICAL CENTRE,37010450,654.9,S8 0SH
Department of Health,NHS Sheffield CCG,30/06/2021,C&M-PMS Prem Notional Rent,PRC DELEGATED CO-COMMISSIONING,WOODSEATS MEDICAL CENTRE,37010450,11666.67,S8 0SH
Department of Health,NHS Sheffield CCG,30/06/2021,C&M-PMS Prem Rates,PRC DELEGATED CO-COMMISSIONING,WOODSEATS MEDICAL CENTRE,37010450,2611,S8 0SH
Department of Health,NHS Sheffield CCG,30/06/2021,C&M-PMS Prem Water Rates,PRC DELEGATED CO-COMMISSIONING,WOODSEATS MEDICAL CENTRE,37010450,389.76,S8 0SH
Department of Health,NHS Sheffield CCG,30/06/2021,C&M-PMS QOF Aspiration,PRC DELEGATED CO-COMMISSIONING,WOODSEATS MEDICAL CENTRE,37010450,10133.24,S8 0SH
Department of Health,NHS Sheffield CCG,30/06/2021,C&M-PMS QOF Achievement,PRC DELEGATED CO-COMMISSIONING,WOODSEATS MEDICAL CENTRE,37159121,46846.15,S8 0SH
Department of Health,NHS Sheffield CCG,30/06/2021,Hcare Srv Rec Fdtn Trust-Contract Baseline,AMBULANCE SERVICES,YORKSHIRE AMBULANCE SERVICE NHS TRUST,37065706,2437523.85,WF2 0XQ
